{"text_format":"1","workbook":"xlsx","n_sheets":4,"sheets":["Instructions","Commitment Form","Contract Items","Data"],"not_rendered":{"charts":0,"images":0,"macros":1,"external_links":1,"defined_names":6,"comments":0,"pivot_tables":0},"unopened":[],"bounds":{"document_bytes":16777216,"sheet_cells":100000,"rows_first":2000,"rows_last":500,"rows_between":2000,"halvings":0,"cell_chars":16384,"cell_head_chars":4096},"cells_cut":0,"cells_raw":0,"read":"whole","date_system":"1900"}

{"sheet":"Instructions","index":0,"n_rows":31,"n_cols":1,"rows_kept":31,"cut":false,"hidden":false,"merged":[[11,0,11,26]]}
["Information/Instruction for Completion of CTDOT SBE or DBE Commitment Form rev. 8/2024"]
[" Disadvantaged Business Enterprise (ct.gov)"]
["Step 1 - Identify all SBE/DBE firms that will be used and get pricing/quotations prior to bid opening.  Complete the commitment form for each SBE/DBE firm being used for a SBE set-aside or DBE goal.  Tab 2 will be the project information including, Prime contractor information, SBE/DBE Firm information, contract amount, SBE set-aside or DBE goal, etc.  Tab 3 is the subcontractor item sheet in which all items subcontracted for SBE set-aside or DBE credit toward the DBE goal must be listed.  Please be sure to use the excel format provided and DO NOT hand write on these forms – they are calculated and formulated for DBE goal counting requirements to avoid mathematical errors.  For DBE submittals, please only use the one NAICS code that most closely matches the work being performed for that firm.  For each SBE or DBE submittal, a new form must be used."]
["* Please note that Prime contractors who are also certified DBE firms may use themselves to meet the goal but will still need to complete this form.  SBE Prime contractors are not allowed to use themselves when meeting the SBE set-aside.  This work must still be set aside for another current SBE certified firm."]
[]
["Step 2 – Complete the commitment form on the 2nd tab in its entirety including all backup documentation that is needed.  For SBE submittals this will include the completed commitment form, SBE certificate and SBE Exhibit 3.   For DBE submittals this will include the completed commitment form, DBE quote, and any explanations of partial items.  You are required to submit enough to meet either the SBE set-aside or the DBE goal.  Save this form as a PDF and submit to the Department within 5 days of bid opening along with the required attachments.  If you fail to submit enough to meet or exceed the SBE set-aside or DBE goal, please move on to Step 3."]
[]
["Step 3 – After exhausting all efforts to secure DBE firms in order to meet the goal, if you still are not successful in doing so please refer to the DBE/GFE package link below and follow instructions on how to prepare a full and complete GFE.  GFE packages are also due within the 5-day timeline from the bid opening and there will be no extensions given on filing these, should you not meet the goal.  "]
["https://portal.ct.gov/-/media/dot/documents/dcontracts/dbe-good-faith-effort-application-20-07-15.pdf"]
[]
["If you have any further questions or still require assistance please reach out to your contracts unit liaison."]
["“Commercial Useful Function (CUF)” A DBE performs a commercially useful function (CUF) when it is responsible for execution of the work of the contract and is carrying out its responsibilities by performing, managing, and supervising the work involved. To perform a commercially useful function, the DBE must also be responsible, with respect to materials and supplies used on the contract, for negotiating price, determining quality and quantity, ordering the material, and installing (where applicable) and paying for the material itself. To determine whether a DBE is performing a commercially useful function, you must evaluate the amount of work subcontracted, industry practices, whether the amount the firm is to be paid under the contract is commensurate with the work it is performing, and the DBE credit claimed for its performance of the work, and other relevant factors.  A DBE does not perform a commercially useful function if its role is limited to that of an extra participant in a transaction, contract, or project through which funds are passed to obtain the appearance of DBE participation. In determining whether a DBE is such an extra participant, you must examine similar transactions, particularly those in which DBEs do not participate."]
["Firm Type Codes"]
[]
["“S” Subcontracted or Partially Subcontracted Items: It is important when subcontracting out a line item either partial or full to make sure that the DBE firm is meeting the comercial useful function (CUF) of that item in order to obtain full DBE credit.  In the case of a partial item, please be sure it is designated for each item and that you provide a description or detail on who will be performing what work on the item and also who will be doing the other portion of the item, along with how the subcontractor is being paid for that item.  CTDOT units of measure do not always translate to how the subcontractor is paid out.  We will need to know how that partial item is being paid to the subcontractor regardless of how that item was bid.  Please be sure to designate these subcontracted items as “S”."]
[]
["“P” Supply Items: For supply items not provided by a manufacturer, the supplier is required to complete the regular dealer/distributor affirmation form.  The supplier is required to complete and submit this form.  This form will assist the contractor to determine the appropriate credit.  If you are subcontracting a DBE firm for supply items, they are allowed 60% credit on that supply item if they meet the CUF as a regular dealer.  New federal regulations have been put in place in regard to supply items and have added “distributor” as a new subset of DBE suppliers. (\"PD\" Firm Type Code) Distributors are permitted to drop-ship from manufacturers if the firm has a distributorship agreement or assumes all responsibility for the materials after point of origin, allowing 40% credit for the cost of materials. Packagers, brokers, manufacturers' representatives, or other persons who arrange, facilitate, or expedite transactions are not regular dealers or suppliers.  Please make sure you are using a “PS” to designate the supply item or a \"PD\" to designate supply/distributor.  For items leased or rented please use code “L” under Firm Type Code instead of “P”"]
["** It is important to complete the regular dealer/distributor affirmation form in order to decide whether or not the subcontractor is truly a supplier and has a warehouse stocked with that item.  For purposes of this section, a regular dealer is a firm that owns (or leases) and-operates, a store, warehouse, or other establishment in which the materials, supplies, articles or equipment of the general character described by the specifications and required under the contract are bought, kept in sufficient quantities, and regularly sold or leased to the public in the usual course of business.  If the “DBE supplier” does not carry the item in stock nor do they have a warehouse where this item is transported from it is likely they will only be eligible for credit as a distributor in which that case they would only be eligible for 40% DBE credit.  If the materials or supplies are purchased from a DBE distributor that neither maintains sufficient inventory nor uses its own distribution equipment for the products in question, count 40% of the cost of materials or supplies (including transportation costs). A DBE distributor is an established business that engages in the regular sale or lease of the items specified by the contract. A DBE distributor assumes responsibility for the items it purchases once they leave the point of origin (e.g., a manufacturer's facility), making it liable for any loss or damage not covered by the carrier's insurance. A DBE distributor performs a CUF when it demonstrates ownership of the items in question and assumes all risk for loss or damage during transportation, evidenced by the terms of the purchase order or a bill of lading (BOL) from a third party, indicating Free on Board (FOB) at the point of origin or similar terms that transfer responsibility of the items in question to the DBE distributor. If these conditions are met, DBE distributors may receive 40 percent for drop-shipped items. Terms that transfer liability to the distributor at the delivery destination (e.g., FOB destination), or deliveries made or arranged by the manufacturer or another seller do not satisfy this requirement.  This is very important to make sure the distinction can be backed up.  This requires Prime contractors to establish pre-award procedures to determine whether a DBE supplier submitted by the contractor/bidder as a regular dealer or distributor has demonstrated the ability and intent to perform as a regular dealer or distributor during the contract, allowing 60% or 40%, respectively, of the cost of materials to count toward goal. This will ensure preliminary counting determinations and contract goal attainment decisions are based on the DBE’s ability and intent to comply with the rule’s commercially useful function (CUF) requirements."]
["***For a DBE supplier that does not meet the CUF of a manufacturer, regular dealer, nor a distributor (e.g., packagers, brokers, manufacturer’s representatives, or others that arrange, facilitate or expedite transactions) the reasonable amount of fees and commissions charged, such as delivery charges; do not count the cost of materials and supplies”"]
[]
["“T” Trucking Items: If you are submitting a DBE firm for credit in the trucking category, the DBE must be using their own trucks, materials and workforce to load/unload in order to obtain full credit for trucking.  Any DBE trucking firm nominated must self-perform not less than 30% of their contract value.  The DBE must be responsible for the management and supervision of the entire trucking operation for which it is responsible on a particular contract, and there cannot be a contrived arrangement for the purpose of meeting DBE goals.  The DBE must itself own and operate at least one fully licensed, insured, and operational truck used on the contract.  The DBE receives credit for the total value of the transportation services it provides on the contract using trucks it owns, insures, and operates using drivers it employs.  The DBE may lease trucks from another DBE firm, including an owner-operator who is certified as a DBE. The DBE who leases trucks from another DBE receives credit for the total value of the transportation services the lessee DBE provides on the contract. The DBE may lease trucks without drivers from a non-DBE truck leasing company. If the DBE leases trucks from a non-DBE truck leasing company and uses its own employees as drivers, it is entitled to credit for the total value of these hauling services.  If the DBE is going to lease trucks they will have to provide a copy of the lease agreement and will have to specify if they are leasing a truck with or without an operator.  Please be sure you are using “T” to designate this is a trucking item."]
["Note for Trucking: A DBE can supplement its fleet by leasing a truck(s) from an established equipment leasing business open to the general public. The lease must indicate that the DBE has exclusive use of and control over the truck. This requirement does not preclude the leased truck from working for others during the term of the lease with the consent of the DBE, so long as the lease gives the DBE absolute priority for use of the leased truck. Otherwise, the DBE does not receive full credit for DBE participation. Leased trucks must display the name and identification number of the DBE. The DBE trucker must also hold the necessary, where appropriate, license, hauling permit, etc., as required by the CTDOT to transport material on public highways. "]
[]
["“M” Manufactured Items:  For purposes of this, a manufacturer is a firm that owns (or leases) and operates a factory or establishment that produces, on the premises, the materials, supplies, articles, or equipment required under the contract and of the general character described by the specifications. Manufacturing includes blending or modifying raw materials or assembling components to create the product to meet contract specifications. When a DBE makes minor modifications to the materials, supplies, articles, or equipment, the DBE is not a manufacturer, they are considered a supplier.  Minor modifications are additional changes to a manufactured product that are small in scope and add minimal value to the final product and not a manufacturer for goal attainment purposes.  Manufacturer is allowed 100% DBE credit."]
[]
["“V” Services: Services may consist of professional, technical, consultant or managerial services and assistance in the procurement of essential personnel, facilities, equipment, material or supplies necessary for the performance of the contract. Additional services may include the delivery of materials and supplies required on a job site (but not the cost of the materials and supplies themselves) when the hauler, trucker, or delivery service is not also the manufacturer of or a regular dealer in the materials and supplies, as well as the fees or commissions charged for providing any bonds or insurance specifically required for the performance of the Contract. Reasonable fees or commissions charged for providing a bona fide service will count towards the DBE/SBE credit for the project, provided that the fee or commission is determined by the Department of Transportation to be reasonable and consistent with fees customarily allowed for similar services."]
[]
["Broker: A party acting as an agent for others in negotiating Contracts, Agreements, purchases, sales, etc., in return for a fee or commission."]
["Brokering of work for DBE firms who have been listed by the Department as certified brokers is allowed.  Credit for those firms shall be applied following the procedures in Non-Manufacturing or Non-Supplier DBE Credit Section. Brokering of work by DBEs who have been approved to perform subcontract work with their own workforce and equipment is not allowed and is a Contract violation. Firms involved in the brokering of work, whether they are DBEs and/or majority firms who engage in willful falsification, distortion, or misrepresentation with respect to any facts related to the project shall be referred to the U.S. DOT, Office of the Inspector General for prosecution under Title 18, U.S. Code, Part I, Chapter 47, Section 1020. If the Contractor elects to utilize a DBE Broker to satisfy a portion or the entire specified DBE goal, the Contractor must provide the DCO with a Request to Subcontract form (CLA-12), indicating the firm designation in accordance with the Subletting Requirements section of this specification."]
[]
["**Brokering of work by a \"Small Contractor\" is not allowed and is a contract violation."]

{"sheet":"Commitment Form","index":1,"n_rows":34,"n_cols":25,"rows_kept":34,"cut":false,"hidden":false,"merged":[[5,3,5,11],[14,0,14,26],[8,15,8,18],[9,19,9,20],[27,0,27,26],[23,0,24,5],[23,7,24,8],[25,0,25,5],[25,7,25,8],[23,16,24,22],[25,16,25,22],[25,24,25,25],[23,24,24,25],[19,0,19,10],[19,14,19,22],[19,24,19,25],[15,0,15,26],[11,0,12,11],[10,14,12,26],[7,10,7,11],[8,10,8,11],[0,0,0,26],[1,0,1,26],[2,0,2,26],[3,0,3,26],[10,6,10,8],[9,6,9,8],[8,3,8,8],[7,3,7,8],[9,14,9,18],[6,14,6,18],[8,24,8,25],[5,14,5,15],[5,16,5,25],[6,19,6,25],[7,15,7,25],[6,3,6,11]]}
["CONNECTICUT DEPARTMENT OF TRANSPORTATION (CTDOT)"]
["PRE-AWARD COMMITMENT APPROVAL REQUEST rev 8/2024"]
["TO BE SUBMITTED WITHIN 5 SAYS OF BID OPENING "]
["Only certified SBE/DBE firms and only for work which they have been certified for will be approved by CTDOT toward the set-aside or goal. Department's SBE/DBE directory is available on CTDOT's website.  Entries only required in blue shaded areas.  Areas not in blue are formulated from other pages."]
[]
["CTDOT Project Number(s): ",null,null,null,null,null,null,null,null,null,null,null,null,null,"Subcontractor:"]
["Project Description:",null,null,null,null,null,null,null,null,null,null,null,null,null,"NAICS Code(s) Associated With This Submission (DBE): "]
["Submitted By (Prime):",null,null,null,null,null,null,null,null,"FEIN No.:",null,null,null,null,"Address:"]
["Original Low Bid ($):",null,null,null,null,null,null,null,null,"SBE Set Aside/DBE Goal %",null,null,null,null,"FEIN No.",null,null,null,null,null,null,null,null,"DBE or SBE:"]
["Dollar amount subcontracted to this firm ($)",null,null,null,null,null,{"$f":"'Contract Items'!N2","v":0},null,null,null,null,null,null,null,"Is this DBE firm a 1st or 2nd tier subcontractor?"]
["Dollar Amount Requested for Credit for this Firm (DBE) ($):",null,null,null,null,null,{"$f":"'Contract Items'!O2","v":0},null,null,"**",null,null,null,null,"* The CTDOT prefers 1st tier Subcontractors; however, credit for 2nd tier DBE firms will be approved provided this page is signed by both the Prime and the DBE firm, the 1st tier Subcontractor is identified, the extent of the 2nd tier work is clearly identified, and the Prime makes the assertion that regardless of its arrangement with the 1st tier Subcontractor, this DBE firm will be used and its replacemnt is subject to the conditions of the DBE speciification and contract requirements. "]
["**Please be advised that by submitting this form you (the Prime) agree that the total Credited amount will be the amount of commitment and will be measured by the Commercially Useful Function (CUF) the Subcontractor performs. "]
[]
[]
["DBE commitment forms must be submitted to the department no more than 5 days from bid opening in a complete and final manner.  Revisions and/or re-submittals are not accepted past the 5-day mark.  Along with the required DBE commitment forms, you must submit the DBE quotes and any backup information needed to make a determination on eligibility.  In order to obtain DBE credit for work performed by a DBE firm the DBE firm must meet the Commercial Useful Function requirement (CUF)."]
[]
[]
[]
[]
["****Is this DBE Purchasing any Material or Leasing any Equipment from the Prime or any of the Prime's Affiliates?",null,null,null,null,null,null,null,null,null,null,null,null,null,"If YES, state the amount and DO NOT include the amount in the amount toward the goal. ",null,null,null,null,null,null,null,null,"Amount: $"]
[]
[]
[]
[]
[]
["Signature of Prime Contractor, Title",null,null,null,null,null,null,"Date",null,null,null,null,null,null,null,null,"Signature of Subcontractor, Title",null,null,null,null,null,null,null,"Date"]
[]
["After this submittal is approved by the Department, any proposed changes to it must be submitted to the Department for approval. "]
[]
[]
[]
[]
[]
[null,null,null,null,null," "]

{"sheet":"Contract Items","index":2,"n_rows":307,"n_cols":16,"rows_kept":307,"cut":false,"hidden":false,"merged":[[93,3,93,4],[94,3,94,4],[95,3,95,4],[96,3,96,4],[97,3,97,4],[88,3,88,4],[89,3,89,4],[90,3,90,4],[91,3,91,4],[92,3,92,4],[103,3,103,4],[104,3,104,4],[105,3,105,4],[106,3,106,4],[98,3,98,4],[99,3,99,4],[100,3,100,4],[101,3,101,4],[102,3,102,4],[73,3,73,4],[74,3,74,4],[75,3,75,4],[76,3,76,4],[77,3,77,4],[4,14,6,14],[87,3,87,4],[78,3,78,4],[79,3,79,4],[80,3,80,4],[81,3,81,4],[82,3,82,4],[83,3,83,4],[84,3,84,4],[85,3,85,4],[86,3,86,4],[68,3,68,4],[69,3,69,4],[70,3,70,4],[71,3,71,4],[72,3,72,4],[63,3,63,4],[64,3,64,4],[65,3,65,4],[66,3,66,4],[67,3,67,4],[58,3,58,4],[59,3,59,4],[60,3,60,4],[61,3,61,4],[62,3,62,4],[53,3,53,4],[54,3,54,4],[55,3,55,4],[56,3,56,4],[57,3,57,4],[49,3,49,4],[50,3,50,4],[51,3,51,4],[52,3,52,4],[43,3,43,4],[44,3,44,4],[45,3,45,4],[46,3,46,4],[47,3,47,4],[20,3,20,4],[27,3,27,4],[28,3,28,4],[29,3,29,4],[23,3,23,4],[31,3,31,4],[21,3,21,4],[22,3,22,4],[48,3,48,4],[0,0,0,2],[1,0,1,2],[2,0,2,2],[2,3,2,4],[4,1,6,1],[4,2,6,2],[40,3,40,4],[41,3,41,4],[42,3,42,4],[36,3,36,4],[37,3,37,4],[38,3,38,4],[39,3,39,4],[32,3,32,4],[25,3,25,4],[26,3,26,4],[16,3,16,4],[17,3,17,4],[33,3,33,4],[34,3,34,4],[35,3,35,4],[30,3,30,4],[24,3,24,4],[19,3,19,4],[12,3,12,4],[13,3,13,4],[18,3,18,4],[7,3,7,4],[4,0,6,0],[14,3,14,4],[15,3,15,4],[8,3,8,4],[9,3,9,4],[10,3,10,4],[11,3,11,4],[4,13,6,13],[4,3,6,4],[4,7,6,7],[4,8,6,8],[4,6,6,6],[4,9,6,9],[4,5,6,5],[0,9,0,10],[1,9,1,10],[2,9,2,10],[4,10,6,10],[4,11,6,11],[4,12,6,12],[0,11,0,12],[1,11,1,12],[2,11,2,12],[1,3,1,4],[0,3,0,4],[107,3,107,4],[108,3,108,4],[109,3,109,4],[110,3,110,4],[111,3,111,4],[112,3,112,4],[113,3,113,4],[114,3,114,4],[115,3,115,4],[116,3,116,4],[117,3,117,4],[118,3,118,4],[119,3,119,4],[120,3,120,4],[121,3,121,4],[122,3,122,4],[123,3,123,4],[124,3,124,4],[140,3,140,4],[141,3,141,4],[142,3,142,4],[125,3,125,4],[126,3,126,4],[127,3,127,4],[128,3,128,4],[129,3,129,4],[130,3,130,4],[131,3,131,4],[134,3,134,4],[135,3,135,4],[136,3,136,4],[137,3,137,4],[138,3,138,4],[139,3,139,4],[132,3,132,4],[133,3,133,4],[143,3,143,4],[144,3,144,4],[145,3,145,4],[146,3,146,4],[147,3,147,4],[148,3,148,4],[149,3,149,4],[150,3,150,4],[151,3,151,4],[152,3,152,4],[153,3,153,4],[154,3,154,4],[155,3,155,4],[156,3,156,4],[157,3,157,4],[158,3,158,4],[159,3,159,4],[160,3,160,4],[176,3,176,4],[177,3,177,4],[178,3,178,4],[161,3,161,4],[162,3,162,4],[163,3,163,4],[164,3,164,4],[165,3,165,4],[166,3,166,4],[167,3,167,4],[170,3,170,4],[171,3,171,4],[172,3,172,4],[173,3,173,4],[174,3,174,4],[175,3,175,4],[168,3,168,4],[169,3,169,4],[179,3,179,4],[180,3,180,4],[181,3,181,4],[182,3,182,4],[183,3,183,4],[184,3,184,4],[185,3,185,4],[186,3,186,4],[187,3,187,4],[188,3,188,4],[189,3,189,4],[190,3,190,4],[191,3,191,4],[192,3,192,4],[193,3,193,4],[194,3,194,4],[195,3,195,4],[196,3,196,4],[212,3,212,4],[213,3,213,4],[214,3,214,4],[197,3,197,4],[198,3,198,4],[199,3,199,4],[200,3,200,4],[201,3,201,4],[202,3,202,4],[203,3,203,4],[206,3,206,4],[207,3,207,4],[208,3,208,4],[209,3,209,4],[210,3,210,4],[211,3,211,4],[204,3,204,4],[205,3,205,4],[215,3,215,4],[216,3,216,4],[217,3,217,4],[218,3,218,4],[219,3,219,4],[220,3,220,4],[221,3,221,4],[222,3,222,4],[223,3,223,4],[224,3,224,4],[225,3,225,4],[226,3,226,4],[227,3,227,4],[228,3,228,4],[229,3,229,4],[230,3,230,4],[231,3,231,4],[232,3,232,4],[248,3,248,4],[249,3,249,4],[250,3,250,4],[233,3,233,4],[234,3,234,4],[235,3,235,4],[236,3,236,4],[237,3,237,4],[238,3,238,4],[239,3,239,4],[242,3,242,4],[243,3,243,4],[244,3,244,4],[245,3,245,4],[246,3,246,4],[247,3,247,4],[240,3,240,4],[241,3,241,4],[251,3,251,4],[252,3,252,4],[253,3,253,4],[254,3,254,4],[255,3,255,4],[256,3,256,4],[257,3,257,4],[258,3,258,4],[259,3,259,4],[260,3,260,4],[261,3,261,4],[262,3,262,4],[263,3,263,4],[264,3,264,4],[265,3,265,4],[266,3,266,4],[267,3,267,4],[268,3,268,4],[284,3,284,4],[285,3,285,4],[286,3,286,4],[269,3,269,4],[270,3,270,4],[271,3,271,4],[272,3,272,4],[273,3,273,4],[274,3,274,4],[275,3,275,4],[278,3,278,4],[279,3,279,4],[280,3,280,4],[281,3,281,4],[282,3,282,4],[283,3,283,4],[276,3,276,4],[277,3,277,4],[287,3,287,4],[288,3,288,4],[289,3,289,4],[290,3,290,4],[291,3,291,4],[292,3,292,4],[293,3,293,4],[294,3,294,4],[295,3,295,4],[305,3,305,4],[306,3,306,4],[296,3,296,4],[297,3,297,4],[298,3,298,4],[299,3,299,4],[300,3,300,4],[301,3,301,4],[302,3,302,4],[303,3,303,4],[304,3,304,4]]}
["Project Number:",null,null,{"$f":"IF('Commitment Form'!D6=\"\", \"\", 'Commitment Form'!D6)","v":""},null,null,null,null,null,null,null,null,null,"Total Subcontracted","Total Credit Requested"]
["Prime Contractor:",null,null,{"$f":"IF('Commitment Form'!D8=\"\", \"\", 'Commitment Form'!D8)","v":""},null,null,null,null,null,null,null,null,null,{"$f":"SUM(N8:N307)","v":0},{"$f":"SUM(O8:O307)","v":0}]
["SBE/DBE Subcontractor:",null,null,{"$f":"IF('Commitment Form'!Q6=\"\", \"\", 'Commitment Form'!Q6)","v":""}]
[]
["#","Contract Item Line #","Item ID #","Item Description",null,"Firm Type Code","Partial Item? (Y/N)","Prime Unit of Measure","Prime Unit Price","Prime Quantity","Sub Unit of Measure","Sub Unit Price","Sub Quantity","Total Item Value Subcontracted","Total Credit Requested"]
[]
[]
[1,null,null,null,null,null,null,null,null,null,null,null,null,{"$f":"IF(OR(L8=\"\",M8=\"\"),\"\",L8*M8)","v":""},{"$f":"IF('Commitment Form'!$Y$9:$Z$9<>\"DBE\", \"\", IF(F8=\"PS\", (0.6*N8), IF(F8=\"PD\", (0.4*N8), N8)))","v":""},""]
[2,null,null,null,null,null,null,null,null,null,null,null,null,{"$f":"IF(OR(L9=\"\",M9=\"\"),\"\",L9*M9)","v":""},{"$f":"IF('Commitment Form'!$Y$9:$Z$9<>\"DBE\", \"\", IF(F9=\"PS\", (0.6*N9), IF(F9=\"PD\", (0.4*N9), N9)))","v":""},""]
[3,null,null,null,null,null,null,null,null,null,null,null,null,"",{"$f":"IF('Commitment Form'!$Y$9:$Z$9<>\"DBE\", \"\", IF(F10=\"PS\", (0.6*N10), IF(F10=\"PD\", (0.4*N10), N10)))","v":""},""]
[4,null,null,null,null,null,null,null,null,null,null,null,null,"",{"$f":"IF('Commitment Form'!$Y$9:$Z$9<>\"DBE\", \"\", IF(F11=\"PS\", (0.6*N11), IF(F11=\"PD\", (0.4*N11), N11)))","v":""},""]
[5,null,null,null,null,null,null,null,null,null,null,null,null,"",{"$f":"IF('Commitment Form'!$Y$9:$Z$9<>\"DBE\", \"\", IF(F12=\"PS\", (0.6*N12), IF(F12=\"PD\", (0.4*N12), N12)))","v":""},""]
[6,null,null,null,null,null,null,null,null,null,null,null,null,"",{"$f":"IF('Commitment Form'!$Y$9:$Z$9<>\"DBE\", \"\", IF(F13=\"PS\", (0.6*N13), IF(F13=\"PD\", (0.4*N13), N13)))","v":""},""]
[7,null,null,null,null,null,null,null,null,null,null,null,null,"",{"$f":"IF('Commitment Form'!$Y$9:$Z$9<>\"DBE\", \"\", IF(F14=\"PS\", (0.6*N14), IF(F14=\"PD\", (0.4*N14), N14)))","v":""},""]
[8,null,null,null,null,null,null,null,null,null,null,null,null,"",{"$f":"IF('Commitment Form'!$Y$9:$Z$9<>\"DBE\", \"\", IF(F15=\"PS\", (0.6*N15), IF(F15=\"PD\", (0.4*N15), N15)))","v":""},""]
[9,null,null,null,null,null,null,null,null,null,null,null,null,"",{"$f":"IF('Commitment Form'!$Y$9:$Z$9<>\"DBE\", \"\", IF(F16=\"PS\", (0.6*N16), IF(F16=\"PD\", (0.4*N16), N16)))","v":""},""]
[10,null,null,null,null,null,null,null,null,null,null,null,null,"",{"$f":"IF('Commitment Form'!$Y$9:$Z$9<>\"DBE\", \"\", IF(F17=\"PS\", (0.6*N17), IF(F17=\"PD\", (0.4*N17), N17)))","v":""},""]
[11,null,null,null,null,null,null,null,null,null,null,null,null,"",{"$f":"IF('Commitment Form'!$Y$9:$Z$9<>\"DBE\", \"\", IF(F18=\"PS\", (0.6*N18), IF(F18=\"PD\", (0.4*N18), N18)))","v":""},""]
[12,null,null,null,null,null,null,null,null,null,null,null,null,"",{"$f":"IF('Commitment Form'!$Y$9:$Z$9<>\"DBE\", \"\", IF(F19=\"PS\", (0.6*N19), IF(F19=\"PD\", (0.4*N19), N19)))","v":""},""]
[13,null,null,null,null,null,null,null,null,null,null,null,null,"",{"$f":"IF('Commitment Form'!$Y$9:$Z$9<>\"DBE\", \"\", IF(F20=\"PS\", (0.6*N20), IF(F20=\"PD\", (0.4*N20), N20)))","v":""},""]
[14,null,null,null,null,null,null,null,null,null,null,null,null,"",{"$f":"IF('Commitment Form'!$Y$9:$Z$9<>\"DBE\", \"\", IF(F21=\"PS\", (0.6*N21), IF(F21=\"PD\", (0.4*N21), N21)))","v":""},""]
[15,null,null,null,null,null,null,null,null,null,null,null,null,"",{"$f":"IF('Commitment Form'!$Y$9:$Z$9<>\"DBE\", \"\", IF(F22=\"PS\", (0.6*N22), IF(F22=\"PD\", (0.4*N22), N22)))","v":""},""]
[16,null,null,null,null,null,null,null,null,null,null,null,null,"",{"$f":"IF('Commitment Form'!$Y$9:$Z$9<>\"DBE\", \"\", IF(F23=\"PS\", (0.6*N23), IF(F23=\"PD\", (0.4*N23), N23)))","v":""},""]
[17,null,null,null,null,null,null,null,null,null,null,null,null,"",{"$f":"IF('Commitment Form'!$Y$9:$Z$9<>\"DBE\", \"\", IF(F24=\"PS\", (0.6*N24), IF(F24=\"PD\", (0.4*N24), N24)))","v":""},""]
[18,null,null,null,null,null,null,null,null,null,null,null,null,"",{"$f":"IF('Commitment Form'!$Y$9:$Z$9<>\"DBE\", \"\", IF(F25=\"PS\", (0.6*N25), IF(F25=\"PD\", (0.4*N25), N25)))","v":""},""]
[19,null,null,null,null,null,null,null,null,null,null,null,null,"",{"$f":"IF('Commitment Form'!$Y$9:$Z$9<>\"DBE\", \"\", IF(F26=\"PS\", (0.6*N26), IF(F26=\"PD\", (0.4*N26), N26)))","v":""},""]
[20,null,null,null,null,null,null,null,null,null,null,null,null,"",{"$f":"IF('Commitment Form'!$Y$9:$Z$9<>\"DBE\", \"\", IF(F27=\"PS\", (0.6*N27), IF(F27=\"PD\", (0.4*N27), N27)))","v":""},""]
[21,null,null,null,null,null,null,null,null,null,null,null,null,"",{"$f":"IF('Commitment Form'!$Y$9:$Z$9<>\"DBE\", \"\", IF(F28=\"PS\", (0.6*N28), IF(F28=\"PD\", (0.4*N28), N28)))","v":""},""]
[22,null,null,null,null,null,null,null,null,null,null,null,null,"",{"$f":"IF('Commitment Form'!$Y$9:$Z$9<>\"DBE\", \"\", IF(F29=\"PS\", (0.6*N29), IF(F29=\"PD\", (0.4*N29), N29)))","v":""},""]
[23,null,null,null,null,null,null,null,null,null,null,null,null,"",{"$f":"IF('Commitment Form'!$Y$9:$Z$9<>\"DBE\", \"\", IF(F30=\"PS\", (0.6*N30), IF(F30=\"PD\", (0.4*N30), N30)))","v":""},""]
[24,null,null,null,null,null,null,null,null,null,null,null,null,"",{"$f":"IF('Commitment Form'!$Y$9:$Z$9<>\"DBE\", \"\", IF(F31=\"PS\", (0.6*N31), IF(F31=\"PD\", (0.4*N31), N31)))","v":""},""]
[25,null,null,null,null,null,null,null,null,null,null,null,null,"",{"$f":"IF('Commitment Form'!$Y$9:$Z$9<>\"DBE\", \"\", IF(F32=\"PS\", (0.6*N32), IF(F32=\"PD\", (0.4*N32), N32)))","v":""},""]
[26,null,null,null,null,null,null,null,null,null,null,null,null,"",{"$f":"IF('Commitment Form'!$Y$9:$Z$9<>\"DBE\", \"\", IF(F33=\"PS\", (0.6*N33), IF(F33=\"PD\", (0.4*N33), N33)))","v":""},""]
[27,null,null,null,null,null,null,null,null,null,null,null,null,"",{"$f":"IF('Commitment Form'!$Y$9:$Z$9<>\"DBE\", \"\", IF(F34=\"PS\", (0.6*N34), IF(F34=\"PD\", (0.4*N34), N34)))","v":""},""]
[28,null,null,null,null,null,null,null,null,null,null,null,null,"",{"$f":"IF('Commitment Form'!$Y$9:$Z$9<>\"DBE\", \"\", IF(F35=\"PS\", (0.6*N35), IF(F35=\"PD\", (0.4*N35), N35)))","v":""},""]
[29,null,null,null,null,null,null,null,null,null,null,null,null,"",{"$f":"IF('Commitment Form'!$Y$9:$Z$9<>\"DBE\", \"\", IF(F36=\"PS\", (0.6*N36), IF(F36=\"PD\", (0.4*N36), N36)))","v":""},""]
[30,null,null,null,null,null,null,null,null,null,null,null,null,"",{"$f":"IF('Commitment Form'!$Y$9:$Z$9<>\"DBE\", \"\", IF(F37=\"PS\", (0.6*N37), IF(F37=\"PD\", (0.4*N37), N37)))","v":""},""]
[31,null,null,null,null,null,null,null,null,null,null,null,null,"",{"$f":"IF('Commitment Form'!$Y$9:$Z$9<>\"DBE\", \"\", IF(F38=\"PS\", (0.6*N38), IF(F38=\"PD\", (0.4*N38), N38)))","v":""},""]
[32,null,null,null,null,null,null,null,null,null,null,null,null,"",{"$f":"IF('Commitment Form'!$Y$9:$Z$9<>\"DBE\", \"\", IF(F39=\"PS\", (0.6*N39), IF(F39=\"PD\", (0.4*N39), N39)))","v":""},""]
[33,null,null,null,null,null,null,null,null,null,null,null,null,"",{"$f":"IF('Commitment Form'!$Y$9:$Z$9<>\"DBE\", \"\", IF(F40=\"PS\", (0.6*N40), IF(F40=\"PD\", (0.4*N40), N40)))","v":""},""]
[34,null,null,null,null,null,null,null,null,null,null,null,null,"",{"$f":"IF('Commitment Form'!$Y$9:$Z$9<>\"DBE\", \"\", IF(F41=\"PS\", (0.6*N41), IF(F41=\"PD\", (0.4*N41), N41)))","v":""},""]
[35,null,null,null,null,null,null,null,null,null,null,null,null,"",{"$f":"IF('Commitment Form'!$Y$9:$Z$9<>\"DBE\", \"\", IF(F42=\"PS\", (0.6*N42), IF(F42=\"PD\", (0.4*N42), N42)))","v":""},""]
[36,null,null,null,null,null,null,null,null,null,null,null,null,"",{"$f":"IF('Commitment Form'!$Y$9:$Z$9<>\"DBE\", \"\", IF(F43=\"PS\", (0.6*N43), IF(F43=\"PD\", (0.4*N43), N43)))","v":""},""]
[37,null,null,null,null,null,null,null,null,null,null,null,null,"",{"$f":"IF('Commitment Form'!$Y$9:$Z$9<>\"DBE\", \"\", IF(F44=\"PS\", (0.6*N44), IF(F44=\"PD\", (0.4*N44), N44)))","v":""},""]
[38,null,null,null,null,null,null,null,null,null,null,null,null,"",{"$f":"IF('Commitment Form'!$Y$9:$Z$9<>\"DBE\", \"\", IF(F45=\"PS\", (0.6*N45), IF(F45=\"PD\", (0.4*N45), N45)))","v":""},""]
[39,null,null,null,null,null,null,null,null,null,null,null,null,"",{"$f":"IF('Commitment Form'!$Y$9:$Z$9<>\"DBE\", \"\", IF(F46=\"PS\", (0.6*N46), IF(F46=\"PD\", (0.4*N46), N46)))","v":""},""]
[40,null,null,null,null,null,null,null,null,null,null,null,null,"",{"$f":"IF('Commitment Form'!$Y$9:$Z$9<>\"DBE\", \"\", IF(F47=\"PS\", (0.6*N47), IF(F47=\"PD\", (0.4*N47), N47)))","v":""},""]
[41,null,null,null,null,null,null,null,null,null,null,null,null,"",{"$f":"IF('Commitment Form'!$Y$9:$Z$9<>\"DBE\", \"\", IF(F48=\"PS\", (0.6*N48), IF(F48=\"PD\", (0.4*N48), N48)))","v":""},""]
[42,null,null,null,null,null,null,null,null,null,null,null,null,"",{"$f":"IF('Commitment Form'!$Y$9:$Z$9<>\"DBE\", \"\", IF(F49=\"PS\", (0.6*N49), IF(F49=\"PD\", (0.4*N49), N49)))","v":""},""]
[43,null,null,null,null,null,null,null,null,null,null,null,null,"",{"$f":"IF('Commitment Form'!$Y$9:$Z$9<>\"DBE\", \"\", IF(F50=\"PS\", (0.6*N50), IF(F50=\"PD\", (0.4*N50), N50)))","v":""},""]
[44,null,null,null,null,null,null,null,null,null,null,null,null,"",{"$f":"IF('Commitment Form'!$Y$9:$Z$9<>\"DBE\", \"\", IF(F51=\"PS\", (0.6*N51), IF(F51=\"PD\", (0.4*N51), N51)))","v":""},""]
[45,null,null,null,null,null,null,null,null,null,null,null,null,"",{"$f":"IF('Commitment Form'!$Y$9:$Z$9<>\"DBE\", \"\", IF(F52=\"PS\", (0.6*N52), IF(F52=\"PD\", (0.4*N52), N52)))","v":""},""]
[46,null,null,null,null,null,null,null,null,null,null,null,null,"",{"$f":"IF('Commitment Form'!$Y$9:$Z$9<>\"DBE\", \"\", IF(F53=\"PS\", (0.6*N53), IF(F53=\"PD\", (0.4*N53), N53)))","v":""},""]
[47,null,null,null,null,null,null,null,null,null,null,null,null,"",{"$f":"IF('Commitment Form'!$Y$9:$Z$9<>\"DBE\", \"\", IF(F54=\"PS\", (0.6*N54), IF(F54=\"PD\", (0.4*N54), N54)))","v":""},""]
[48,null,null,null,null,null,null,null,null,null,null,null,null,"",{"$f":"IF('Commitment Form'!$Y$9:$Z$9<>\"DBE\", \"\", IF(F55=\"PS\", (0.6*N55), IF(F55=\"PD\", (0.4*N55), N55)))","v":""},""]
[49,null,null,null,null,null,null,null,null,null,null,null,null,"",{"$f":"IF('Commitment Form'!$Y$9:$Z$9<>\"DBE\", \"\", IF(F56=\"PS\", (0.6*N56), IF(F56=\"PD\", (0.4*N56), N56)))","v":""},""]
[50,null,null,null,null,null,null,null,null,null,null,null,null,"",{"$f":"IF('Commitment Form'!$Y$9:$Z$9<>\"DBE\", \"\", IF(F57=\"PS\", (0.6*N57), IF(F57=\"PD\", (0.4*N57), N57)))","v":""},""]
[51,null,null,null,null,null,null,null,null,null,null,null,null,"",{"$f":"IF('Commitment Form'!$Y$9:$Z$9<>\"DBE\", \"\", IF(F58=\"PS\", (0.6*N58), IF(F58=\"PD\", (0.4*N58), N58)))","v":""},""]
[52,null,null,null,null,null,null,null,null,null,null,null,null,"",{"$f":"IF('Commitment Form'!$Y$9:$Z$9<>\"DBE\", \"\", IF(F59=\"PS\", (0.6*N59), IF(F59=\"PD\", (0.4*N59), N59)))","v":""},""]
[53,null,null,null,null,null,null,null,null,null,null,null,null,"",{"$f":"IF('Commitment Form'!$Y$9:$Z$9<>\"DBE\", \"\", IF(F60=\"PS\", (0.6*N60), IF(F60=\"PD\", (0.4*N60), N60)))","v":""},""]
[54,null,null,null,null,null,null,null,null,null,null,null,null,"",{"$f":"IF('Commitment Form'!$Y$9:$Z$9<>\"DBE\", \"\", IF(F61=\"PS\", (0.6*N61), IF(F61=\"PD\", (0.4*N61), N61)))","v":""},""]
[55,null,null,null,null,null,null,null,null,null,null,null,null,"",{"$f":"IF('Commitment Form'!$Y$9:$Z$9<>\"DBE\", \"\", IF(F62=\"PS\", (0.6*N62), IF(F62=\"PD\", (0.4*N62), N62)))","v":""},""]
[56,null,null,null,null,null,null,null,null,null,null,null,null,"",{"$f":"IF('Commitment Form'!$Y$9:$Z$9<>\"DBE\", \"\", IF(F63=\"PS\", (0.6*N63), IF(F63=\"PD\", (0.4*N63), N63)))","v":""},""]
[57,null,null,null,null,null,null,null,null,null,null,null,null,"",{"$f":"IF('Commitment Form'!$Y$9:$Z$9<>\"DBE\", \"\", IF(F64=\"PS\", (0.6*N64), IF(F64=\"PD\", (0.4*N64), N64)))","v":""},""]
[58,null,null,null,null,null,null,null,null,null,null,null,null,"",{"$f":"IF('Commitment Form'!$Y$9:$Z$9<>\"DBE\", \"\", IF(F65=\"PS\", (0.6*N65), IF(F65=\"PD\", (0.4*N65), N65)))","v":""},""]
[59,null,null,null,null,null,null,null,null,null,null,null,null,"",{"$f":"IF('Commitment Form'!$Y$9:$Z$9<>\"DBE\", \"\", IF(F66=\"PS\", (0.6*N66), IF(F66=\"PD\", (0.4*N66), N66)))","v":""},""]
[60,null,null,null,null,null,null,null,null,null,null,null,null,"",{"$f":"IF('Commitment Form'!$Y$9:$Z$9<>\"DBE\", \"\", IF(F67=\"PS\", (0.6*N67), IF(F67=\"PD\", (0.4*N67), N67)))","v":""},""]
[61,null,null,null,null,null,null,null,null,null,null,null,null,"",{"$f":"IF('Commitment Form'!$Y$9:$Z$9<>\"DBE\", \"\", IF(F68=\"PS\", (0.6*N68), IF(F68=\"PD\", (0.4*N68), N68)))","v":""},""]
[62,null,null,null,null,null,null,null,null,null,null,null,null,"",{"$f":"IF('Commitment Form'!$Y$9:$Z$9<>\"DBE\", \"\", IF(F69=\"PS\", (0.6*N69), IF(F69=\"PD\", (0.4*N69), N69)))","v":""},""]
[63,null,null,null,null,null,null,null,null,null,null,null,null,"",{"$f":"IF('Commitment Form'!$Y$9:$Z$9<>\"DBE\", \"\", IF(F70=\"PS\", (0.6*N70), IF(F70=\"PD\", (0.4*N70), N70)))","v":""},""]
[64,null,null,null,null,null,null,null,null,null,null,null,null,"",{"$f":"IF('Commitment Form'!$Y$9:$Z$9<>\"DBE\", \"\", IF(F71=\"PS\", (0.6*N71), IF(F71=\"PD\", (0.4*N71), N71)))","v":""},""]
[65,null,null,null,null,null,null,null,null,null,null,null,null,{"$f":"IF(OR(L72=\"\",M72=\"\"),\"\",L72*M72)","v":""},{"$f":"IF('Commitment Form'!$Y$9:$Z$9<>\"DBE\", \"\", IF(F72=\"PS\", (0.6*N72), IF(F72=\"PD\", (0.4*N72), N72)))","v":""},""]
[66,null,null,null,null,null,null,null,null,null,null,null,null,"",{"$f":"IF('Commitment Form'!$Y$9:$Z$9<>\"DBE\", \"\", IF(F73=\"PS\", (0.6*N73), IF(F73=\"PD\", (0.4*N73), N73)))","v":""},""]
[67,null,null,null,null,null,null,null,null,null,null,null,null,"",{"$f":"IF('Commitment Form'!$Y$9:$Z$9<>\"DBE\", \"\", IF(F74=\"PS\", (0.6*N74), IF(F74=\"PD\", (0.4*N74), N74)))","v":""},""]
[68,null,null,null,null,null,null,null,null,null,null,null,null,"",{"$f":"IF('Commitment Form'!$Y$9:$Z$9<>\"DBE\", \"\", IF(F75=\"PS\", (0.6*N75), IF(F75=\"PD\", (0.4*N75), N75)))","v":""},""]
[69,null,null,null,null,null,null,null,null,null,null,null,null,"",{"$f":"IF('Commitment Form'!$Y$9:$Z$9<>\"DBE\", \"\", IF(F76=\"PS\", (0.6*N76), IF(F76=\"PD\", (0.4*N76), N76)))","v":""},""]
[70,null,null,null,null,null,null,null,null,null,null,null,null,"",{"$f":"IF('Commitment Form'!$Y$9:$Z$9<>\"DBE\", \"\", IF(F77=\"PS\", (0.6*N77), IF(F77=\"PD\", (0.4*N77), N77)))","v":""},""]
[71,null,null,null,null,null,null,null,null,null,null,null,null,"",{"$f":"IF('Commitment Form'!$Y$9:$Z$9<>\"DBE\", \"\", IF(F78=\"PS\", (0.6*N78), IF(F78=\"PD\", (0.4*N78), N78)))","v":""},""]
[72,null,null,null,null,null,null,null,null,null,null,null,null,"",{"$f":"IF('Commitment Form'!$Y$9:$Z$9<>\"DBE\", \"\", IF(F79=\"PS\", (0.6*N79), IF(F79=\"PD\", (0.4*N79), N79)))","v":""},""]
[73,null,null,null,null,null,null,null,null,null,null,null,null,"",{"$f":"IF('Commitment Form'!$Y$9:$Z$9<>\"DBE\", \"\", IF(F80=\"PS\", (0.6*N80), IF(F80=\"PD\", (0.4*N80), N80)))","v":""},""]
[74,null,null,null,null,null,null,null,null,null,null,null,null,"",{"$f":"IF('Commitment Form'!$Y$9:$Z$9<>\"DBE\", \"\", IF(F81=\"PS\", (0.6*N81), IF(F81=\"PD\", (0.4*N81), N81)))","v":""},""]
[75,null,null,null,null,null,null,null,null,null,null,null,null,"",{"$f":"IF('Commitment Form'!$Y$9:$Z$9<>\"DBE\", \"\", IF(F82=\"PS\", (0.6*N82), IF(F82=\"PD\", (0.4*N82), N82)))","v":""},""]
[76,null,null,null,null,null,null,null,null,null,null,null,null,"",{"$f":"IF('Commitment Form'!$Y$9:$Z$9<>\"DBE\", \"\", IF(F83=\"PS\", (0.6*N83), IF(F83=\"PD\", (0.4*N83), N83)))","v":""},""]
[77,null,null,null,null,null,null,null,null,null,null,null,null,"",{"$f":"IF('Commitment Form'!$Y$9:$Z$9<>\"DBE\", \"\", IF(F84=\"PS\", (0.6*N84), IF(F84=\"PD\", (0.4*N84), N84)))","v":""},""]
[78,null,null,null,null,null,null,null,null,null,null,null,null,"",{"$f":"IF('Commitment Form'!$Y$9:$Z$9<>\"DBE\", \"\", IF(F85=\"PS\", (0.6*N85), IF(F85=\"PD\", (0.4*N85), N85)))","v":""},""]
[79,null,null,null,null,null,null,null,null,null,null,null,null,"",{"$f":"IF('Commitment Form'!$Y$9:$Z$9<>\"DBE\", \"\", IF(F86=\"PS\", (0.6*N86), IF(F86=\"PD\", (0.4*N86), N86)))","v":""},""]
[80,null,null,null,null,null,null,null,null,null,null,null,null,"",{"$f":"IF('Commitment Form'!$Y$9:$Z$9<>\"DBE\", \"\", IF(F87=\"PS\", (0.6*N87), IF(F87=\"PD\", (0.4*N87), N87)))","v":""},""]
[81,null,null,null,null,null,null,null,null,null,null,null,null,"",{"$f":"IF('Commitment Form'!$Y$9:$Z$9<>\"DBE\", \"\", IF(F88=\"PS\", (0.6*N88), IF(F88=\"PD\", (0.4*N88), N88)))","v":""},""]
[82,null,null,null,null,null,null,null,null,null,null,null,null,"",{"$f":"IF('Commitment Form'!$Y$9:$Z$9<>\"DBE\", \"\", IF(F89=\"PS\", (0.6*N89), IF(F89=\"PD\", (0.4*N89), N89)))","v":""},""]
[83,null,null,null,null,null,null,null,null,null,null,null,null,"",{"$f":"IF('Commitment Form'!$Y$9:$Z$9<>\"DBE\", \"\", IF(F90=\"PS\", (0.6*N90), IF(F90=\"PD\", (0.4*N90), N90)))","v":""},""]
[84,null,null,null,null,null,null,null,null,null,null,null,null,"",{"$f":"IF('Commitment Form'!$Y$9:$Z$9<>\"DBE\", \"\", IF(F91=\"PS\", (0.6*N91), IF(F91=\"PD\", (0.4*N91), N91)))","v":""},""]
[85,null,null,null,null,null,null,null,null,null,null,null,null,"",{"$f":"IF('Commitment Form'!$Y$9:$Z$9<>\"DBE\", \"\", IF(F92=\"PS\", (0.6*N92), IF(F92=\"PD\", (0.4*N92), N92)))","v":""},""]
[86,null,null,null,null,null,null,null,null,null,null,null,null,"",{"$f":"IF('Commitment Form'!$Y$9:$Z$9<>\"DBE\", \"\", IF(F93=\"PS\", (0.6*N93), IF(F93=\"PD\", (0.4*N93), N93)))","v":""},""]
[87,null,null,null,null,null,null,null,null,null,null,null,null,"",{"$f":"IF('Commitment Form'!$Y$9:$Z$9<>\"DBE\", \"\", IF(F94=\"PS\", (0.6*N94), IF(F94=\"PD\", (0.4*N94), N94)))","v":""},""]
[88,null,null,null,null,null,null,null,null,null,null,null,null,"",{"$f":"IF('Commitment Form'!$Y$9:$Z$9<>\"DBE\", \"\", IF(F95=\"PS\", (0.6*N95), IF(F95=\"PD\", (0.4*N95), N95)))","v":""},""]
[89,null,null,null,null,null,null,null,null,null,null,null,null,"",{"$f":"IF('Commitment Form'!$Y$9:$Z$9<>\"DBE\", \"\", IF(F96=\"PS\", (0.6*N96), IF(F96=\"PD\", (0.4*N96), N96)))","v":""},""]
[90,null,null,null,null,null,null,null,null,null,null,null,null,"",{"$f":"IF('Commitment Form'!$Y$9:$Z$9<>\"DBE\", \"\", IF(F97=\"PS\", (0.6*N97), IF(F97=\"PD\", (0.4*N97), N97)))","v":""},""]
[91,null,null,null,null,null,null,null,null,null,null,null,null,"",{"$f":"IF('Commitment Form'!$Y$9:$Z$9<>\"DBE\", \"\", IF(F98=\"PS\", (0.6*N98), IF(F98=\"PD\", (0.4*N98), N98)))","v":""},""]
[92,null,null,null,null,null,null,null,null,null,null,null,null,"",{"$f":"IF('Commitment Form'!$Y$9:$Z$9<>\"DBE\", \"\", IF(F99=\"PS\", (0.6*N99), IF(F99=\"PD\", (0.4*N99), N99)))","v":""},""]
[93,null,null,null,null,null,null,null,null,null,null,null,null,"",{"$f":"IF('Commitment Form'!$Y$9:$Z$9<>\"DBE\", \"\", IF(F100=\"PS\", (0.6*N100), IF(F100=\"PD\", (0.4*N100), N100)))","v":""},""]
[94,null,null,null,null,null,null,null,null,null,null,null,null,"",{"$f":"IF('Commitment Form'!$Y$9:$Z$9<>\"DBE\", \"\", IF(F101=\"PS\", (0.6*N101), IF(F101=\"PD\", (0.4*N101), N101)))","v":""},""]
[95,null,null,null,null,null,null,null,null,null,null,null,null,"",{"$f":"IF('Commitment Form'!$Y$9:$Z$9<>\"DBE\", \"\", IF(F102=\"PS\", (0.6*N102), IF(F102=\"PD\", (0.4*N102), N102)))","v":""},""]
[96,null,null,null,null,null,null,null,null,null,null,null,null,"",{"$f":"IF('Commitment Form'!$Y$9:$Z$9<>\"DBE\", \"\", IF(F103=\"PS\", (0.6*N103), IF(F103=\"PD\", (0.4*N103), N103)))","v":""},""]
[97,null,null,null,null,null,null,null,null,null,null,null,null,"",{"$f":"IF('Commitment Form'!$Y$9:$Z$9<>\"DBE\", \"\", IF(F104=\"PS\", (0.6*N104), IF(F104=\"PD\", (0.4*N104), N104)))","v":""},""]
[98,null,null,null,null,null,null,null,null,null,null,null,null,"",{"$f":"IF('Commitment Form'!$Y$9:$Z$9<>\"DBE\", \"\", IF(F105=\"PS\", (0.6*N105), IF(F105=\"PD\", (0.4*N105), N105)))","v":""},""]
[99,null,null,null,null,null,null,null,null,null,null,null,null,"",{"$f":"IF('Commitment Form'!$Y$9:$Z$9<>\"DBE\", \"\", IF(F106=\"PS\", (0.6*N106), IF(F106=\"PD\", (0.4*N106), N106)))","v":""},""]
[100,null,null,null,null,null,null,null,null,null,null,null,null,"",{"$f":"IF('Commitment Form'!$Y$9:$Z$9<>\"DBE\", \"\", IF(F107=\"PS\", (0.6*N107), IF(F107=\"PD\", (0.4*N107), N107)))","v":""},""]
[101,null,null,null,null,null,null,null,null,null,null,null,null,"",{"$f":"IF('Commitment Form'!$Y$9:$Z$9<>\"DBE\", \"\", IF(F108=\"PS\", (0.6*N108), IF(F108=\"PD\", (0.4*N108), N108)))","v":""},""]
[102,null,null,null,null,null,null,null,null,null,null,null,null,"",{"$f":"IF('Commitment Form'!$Y$9:$Z$9<>\"DBE\", \"\", IF(F109=\"PS\", (0.6*N109), IF(F109=\"PD\", (0.4*N109), N109)))","v":""},""]
[103,null,null,null,null,null,null,null,null,null,null,null,null,"",{"$f":"IF('Commitment Form'!$Y$9:$Z$9<>\"DBE\", \"\", IF(F110=\"PS\", (0.6*N110), IF(F110=\"PD\", (0.4*N110), N110)))","v":""},""]
[104,null,null,null,null,null,null,null,null,null,null,null,null,"",{"$f":"IF('Commitment Form'!$Y$9:$Z$9<>\"DBE\", \"\", IF(F111=\"PS\", (0.6*N111), IF(F111=\"PD\", (0.4*N111), N111)))","v":""},""]
[105,null,null,null,null,null,null,null,null,null,null,null,null,"",{"$f":"IF('Commitment Form'!$Y$9:$Z$9<>\"DBE\", \"\", IF(F112=\"PS\", (0.6*N112), IF(F112=\"PD\", (0.4*N112), N112)))","v":""},""]
[106,null,null,null,null,null,null,null,null,null,null,null,null,"",{"$f":"IF('Commitment Form'!$Y$9:$Z$9<>\"DBE\", \"\", IF(F113=\"PS\", (0.6*N113), IF(F113=\"PD\", (0.4*N113), N113)))","v":""},""]
[107,null,null,null,null,null,null,null,null,null,null,null,null,"",{"$f":"IF('Commitment Form'!$Y$9:$Z$9<>\"DBE\", \"\", IF(F114=\"PS\", (0.6*N114), IF(F114=\"PD\", (0.4*N114), N114)))","v":""},""]
[108,null,null,null,null,null,null,null,null,null,null,null,null,"",{"$f":"IF('Commitment Form'!$Y$9:$Z$9<>\"DBE\", \"\", IF(F115=\"PS\", (0.6*N115), IF(F115=\"PD\", (0.4*N115), N115)))","v":""},""]
[109,null,null,null,null,null,null,null,null,null,null,null,null,"",{"$f":"IF('Commitment Form'!$Y$9:$Z$9<>\"DBE\", \"\", IF(F116=\"PS\", (0.6*N116), IF(F116=\"PD\", (0.4*N116), N116)))","v":""},""]
[110,null,null,null,null,null,null,null,null,null,null,null,null,"",{"$f":"IF('Commitment Form'!$Y$9:$Z$9<>\"DBE\", \"\", IF(F117=\"PS\", (0.6*N117), IF(F117=\"PD\", (0.4*N117), N117)))","v":""},""]
[111,null,null,null,null,null,null,null,null,null,null,null,null,"",{"$f":"IF('Commitment Form'!$Y$9:$Z$9<>\"DBE\", \"\", IF(F118=\"PS\", (0.6*N118), IF(F118=\"PD\", (0.4*N118), N118)))","v":""},""]
[112,null,null,null,null,null,null,null,null,null,null,null,null,"",{"$f":"IF('Commitment Form'!$Y$9:$Z$9<>\"DBE\", \"\", IF(F119=\"PS\", (0.6*N119), IF(F119=\"PD\", (0.4*N119), N119)))","v":""},""]
[113,null,null,null,null,null,null,null,null,null,null,null,null,"",{"$f":"IF('Commitment Form'!$Y$9:$Z$9<>\"DBE\", \"\", IF(F120=\"PS\", (0.6*N120), IF(F120=\"PD\", (0.4*N120), N120)))","v":""},""]
[114,null,null,null,null,null,null,null,null,null,null,null,null,"",{"$f":"IF('Commitment Form'!$Y$9:$Z$9<>\"DBE\", \"\", IF(F121=\"PS\", (0.6*N121), IF(F121=\"PD\", (0.4*N121), N121)))","v":""},""]
[115,null,null,null,null,null,null,null,null,null,null,null,null,"",{"$f":"IF('Commitment Form'!$Y$9:$Z$9<>\"DBE\", \"\", IF(F122=\"PS\", (0.6*N122), IF(F122=\"PD\", (0.4*N122), N122)))","v":""},""]
[116,null,null,null,null,null,null,null,null,null,null,null,null,"",{"$f":"IF('Commitment Form'!$Y$9:$Z$9<>\"DBE\", \"\", IF(F123=\"PS\", (0.6*N123), IF(F123=\"PD\", (0.4*N123), N123)))","v":""},""]
[117,null,null,null,null,null,null,null,null,null,null,null,null,"",{"$f":"IF('Commitment Form'!$Y$9:$Z$9<>\"DBE\", \"\", IF(F124=\"PS\", (0.6*N124), IF(F124=\"PD\", (0.4*N124), N124)))","v":""},""]
[118,null,null,null,null,null,null,null,null,null,null,null,null,"",{"$f":"IF('Commitment Form'!$Y$9:$Z$9<>\"DBE\", \"\", IF(F125=\"PS\", (0.6*N125), IF(F125=\"PD\", (0.4*N125), N125)))","v":""},""]
[119,null,null,null,null,null,null,null,null,null,null,null,null,"",{"$f":"IF('Commitment Form'!$Y$9:$Z$9<>\"DBE\", \"\", IF(F126=\"PS\", (0.6*N126), IF(F126=\"PD\", (0.4*N126), N126)))","v":""},""]
[120,null,null,null,null,null,null,null,null,null,null,null,null,"",{"$f":"IF('Commitment Form'!$Y$9:$Z$9<>\"DBE\", \"\", IF(F127=\"PS\", (0.6*N127), IF(F127=\"PD\", (0.4*N127), N127)))","v":""},""]
[121,null,null,null,null,null,null,null,null,null,null,null,null,"",{"$f":"IF('Commitment Form'!$Y$9:$Z$9<>\"DBE\", \"\", IF(F128=\"PS\", (0.6*N128), IF(F128=\"PD\", (0.4*N128), N128)))","v":""},""]
[122,null,null,null,null,null,null,null,null,null,null,null,null,"",{"$f":"IF('Commitment Form'!$Y$9:$Z$9<>\"DBE\", \"\", IF(F129=\"PS\", (0.6*N129), IF(F129=\"PD\", (0.4*N129), N129)))","v":""},""]
[123,null,null,null,null,null,null,null,null,null,null,null,null,"",{"$f":"IF('Commitment Form'!$Y$9:$Z$9<>\"DBE\", \"\", IF(F130=\"PS\", (0.6*N130), IF(F130=\"PD\", (0.4*N130), N130)))","v":""},""]
[124,null,null,null,null,null,null,null,null,null,null,null,null,"",{"$f":"IF('Commitment Form'!$Y$9:$Z$9<>\"DBE\", \"\", IF(F131=\"PS\", (0.6*N131), IF(F131=\"PD\", (0.4*N131), N131)))","v":""},""]
[125,null,null,null,null,null,null,null,null,null,null,null,null,"",{"$f":"IF('Commitment Form'!$Y$9:$Z$9<>\"DBE\", \"\", IF(F132=\"PS\", (0.6*N132), IF(F132=\"PD\", (0.4*N132), N132)))","v":""},""]
[126,null,null,null,null,null,null,null,null,null,null,null,null,"",{"$f":"IF('Commitment Form'!$Y$9:$Z$9<>\"DBE\", \"\", IF(F133=\"PS\", (0.6*N133), IF(F133=\"PD\", (0.4*N133), N133)))","v":""},""]
[127,null,null,null,null,null,null,null,null,null,null,null,null,"",{"$f":"IF('Commitment Form'!$Y$9:$Z$9<>\"DBE\", \"\", IF(F134=\"PS\", (0.6*N134), IF(F134=\"PD\", (0.4*N134), N134)))","v":""},""]
[128,null,null,null,null,null,null,null,null,null,null,null,null,"",{"$f":"IF('Commitment Form'!$Y$9:$Z$9<>\"DBE\", \"\", IF(F135=\"PS\", (0.6*N135), IF(F135=\"PD\", (0.4*N135), N135)))","v":""},""]
[129,null,null,null,null,null,null,null,null,null,null,null,null,{"$f":"IF(OR(L136=\"\",M136=\"\"),\"\",L136*M136)","v":""},{"$f":"IF('Commitment Form'!$Y$9:$Z$9<>\"DBE\", \"\", IF(F136=\"PS\", (0.6*N136), IF(F136=\"PD\", (0.4*N136), N136)))","v":""},""]
[130,null,null,null,null,null,null,null,null,null,null,null,null,"",{"$f":"IF('Commitment Form'!$Y$9:$Z$9<>\"DBE\", \"\", IF(F137=\"PS\", (0.6*N137), IF(F137=\"PD\", (0.4*N137), N137)))","v":""},""]
[131,null,null,null,null,null,null,null,null,null,null,null,null,"",{"$f":"IF('Commitment Form'!$Y$9:$Z$9<>\"DBE\", \"\", IF(F138=\"PS\", (0.6*N138), IF(F138=\"PD\", (0.4*N138), N138)))","v":""},""]
[132,null,null,null,null,null,null,null,null,null,null,null,null,"",{"$f":"IF('Commitment Form'!$Y$9:$Z$9<>\"DBE\", \"\", IF(F139=\"PS\", (0.6*N139), IF(F139=\"PD\", (0.4*N139), N139)))","v":""},""]
[133,null,null,null,null,null,null,null,null,null,null,null,null,"",{"$f":"IF('Commitment Form'!$Y$9:$Z$9<>\"DBE\", \"\", IF(F140=\"PS\", (0.6*N140), IF(F140=\"PD\", (0.4*N140), N140)))","v":""},""]
[134,null,null,null,null,null,null,null,null,null,null,null,null,"",{"$f":"IF('Commitment Form'!$Y$9:$Z$9<>\"DBE\", \"\", IF(F141=\"PS\", (0.6*N141), IF(F141=\"PD\", (0.4*N141), N141)))","v":""},""]
[135,null,null,null,null,null,null,null,null,null,null,null,null,"",{"$f":"IF('Commitment Form'!$Y$9:$Z$9<>\"DBE\", \"\", IF(F142=\"PS\", (0.6*N142), IF(F142=\"PD\", (0.4*N142), N142)))","v":""},""]
[136,null,null,null,null,null,null,null,null,null,null,null,null,"",{"$f":"IF('Commitment Form'!$Y$9:$Z$9<>\"DBE\", \"\", IF(F143=\"PS\", (0.6*N143), IF(F143=\"PD\", (0.4*N143), N143)))","v":""},""]
[137,null,null,null,null,null,null,null,null,null,null,null,null,"",{"$f":"IF('Commitment Form'!$Y$9:$Z$9<>\"DBE\", \"\", IF(F144=\"PS\", (0.6*N144), IF(F144=\"PD\", (0.4*N144), N144)))","v":""},""]
[138,null,null,null,null,null,null,null,null,null,null,null,null,"",{"$f":"IF('Commitment Form'!$Y$9:$Z$9<>\"DBE\", \"\", IF(F145=\"PS\", (0.6*N145), IF(F145=\"PD\", (0.4*N145), N145)))","v":""},""]
[139,null,null,null,null,null,null,null,null,null,null,null,null,"",{"$f":"IF('Commitment Form'!$Y$9:$Z$9<>\"DBE\", \"\", IF(F146=\"PS\", (0.6*N146), IF(F146=\"PD\", (0.4*N146), N146)))","v":""},""]
[140,null,null,null,null,null,null,null,null,null,null,null,null,"",{"$f":"IF('Commitment Form'!$Y$9:$Z$9<>\"DBE\", \"\", IF(F147=\"PS\", (0.6*N147), IF(F147=\"PD\", (0.4*N147), N147)))","v":""},""]
[141,null,null,null,null,null,null,null,null,null,null,null,null,"",{"$f":"IF('Commitment Form'!$Y$9:$Z$9<>\"DBE\", \"\", IF(F148=\"PS\", (0.6*N148), IF(F148=\"PD\", (0.4*N148), N148)))","v":""},""]
[142,null,null,null,null,null,null,null,null,null,null,null,null,"",{"$f":"IF('Commitment Form'!$Y$9:$Z$9<>\"DBE\", \"\", IF(F149=\"PS\", (0.6*N149), IF(F149=\"PD\", (0.4*N149), N149)))","v":""},""]
[143,null,null,null,null,null,null,null,null,null,null,null,null,"",{"$f":"IF('Commitment Form'!$Y$9:$Z$9<>\"DBE\", \"\", IF(F150=\"PS\", (0.6*N150), IF(F150=\"PD\", (0.4*N150), N150)))","v":""},""]
[144,null,null,null,null,null,null,null,null,null,null,null,null,"",{"$f":"IF('Commitment Form'!$Y$9:$Z$9<>\"DBE\", \"\", IF(F151=\"PS\", (0.6*N151), IF(F151=\"PD\", (0.4*N151), N151)))","v":""},""]
[145,null,null,null,null,null,null,null,null,null,null,null,null,"",{"$f":"IF('Commitment Form'!$Y$9:$Z$9<>\"DBE\", \"\", IF(F152=\"PS\", (0.6*N152), IF(F152=\"PD\", (0.4*N152), N152)))","v":""},""]
[146,null,null,null,null,null,null,null,null,null,null,null,null,"",{"$f":"IF('Commitment Form'!$Y$9:$Z$9<>\"DBE\", \"\", IF(F153=\"PS\", (0.6*N153), IF(F153=\"PD\", (0.4*N153), N153)))","v":""},""]
[147,null,null,null,null,null,null,null,null,null,null,null,null,"",{"$f":"IF('Commitment Form'!$Y$9:$Z$9<>\"DBE\", \"\", IF(F154=\"PS\", (0.6*N154), IF(F154=\"PD\", (0.4*N154), N154)))","v":""},""]
[148,null,null,null,null,null,null,null,null,null,null,null,null,"",{"$f":"IF('Commitment Form'!$Y$9:$Z$9<>\"DBE\", \"\", IF(F155=\"PS\", (0.6*N155), IF(F155=\"PD\", (0.4*N155), N155)))","v":""},""]
[149,null,null,null,null,null,null,null,null,null,null,null,null,"",{"$f":"IF('Commitment Form'!$Y$9:$Z$9<>\"DBE\", \"\", IF(F156=\"PS\", (0.6*N156), IF(F156=\"PD\", (0.4*N156), N156)))","v":""},""]
[150,null,null,null,null,null,null,null,null,null,null,null,null,"",{"$f":"IF('Commitment Form'!$Y$9:$Z$9<>\"DBE\", \"\", IF(F157=\"PS\", (0.6*N157), IF(F157=\"PD\", (0.4*N157), N157)))","v":""},""]
[151,null,null,null,null,null,null,null,null,null,null,null,null,"",{"$f":"IF('Commitment Form'!$Y$9:$Z$9<>\"DBE\", \"\", IF(F158=\"PS\", (0.6*N158), IF(F158=\"PD\", (0.4*N158), N158)))","v":""},""]
[152,null,null,null,null,null,null,null,null,null,null,null,null,"",{"$f":"IF('Commitment Form'!$Y$9:$Z$9<>\"DBE\", \"\", IF(F159=\"PS\", (0.6*N159), IF(F159=\"PD\", (0.4*N159), N159)))","v":""},""]
[153,null,null,null,null,null,null,null,null,null,null,null,null,"",{"$f":"IF('Commitment Form'!$Y$9:$Z$9<>\"DBE\", \"\", IF(F160=\"PS\", (0.6*N160), IF(F160=\"PD\", (0.4*N160), N160)))","v":""},""]
[154,null,null,null,null,null,null,null,null,null,null,null,null,"",{"$f":"IF('Commitment Form'!$Y$9:$Z$9<>\"DBE\", \"\", IF(F161=\"PS\", (0.6*N161), IF(F161=\"PD\", (0.4*N161), N161)))","v":""},""]
[155,null,null,null,null,null,null,null,null,null,null,null,null,"",{"$f":"IF('Commitment Form'!$Y$9:$Z$9<>\"DBE\", \"\", IF(F162=\"PS\", (0.6*N162), IF(F162=\"PD\", (0.4*N162), N162)))","v":""},""]
[156,null,null,null,null,null,null,null,null,null,null,null,null,"",{"$f":"IF('Commitment Form'!$Y$9:$Z$9<>\"DBE\", \"\", IF(F163=\"PS\", (0.6*N163), IF(F163=\"PD\", (0.4*N163), N163)))","v":""},""]
[157,null,null,null,null,null,null,null,null,null,null,null,null,"",{"$f":"IF('Commitment Form'!$Y$9:$Z$9<>\"DBE\", \"\", IF(F164=\"PS\", (0.6*N164), IF(F164=\"PD\", (0.4*N164), N164)))","v":""},""]
[158,null,null,null,null,null,null,null,null,null,null,null,null,"",{"$f":"IF('Commitment Form'!$Y$9:$Z$9<>\"DBE\", \"\", IF(F165=\"PS\", (0.6*N165), IF(F165=\"PD\", (0.4*N165), N165)))","v":""},""]
[159,null,null,null,null,null,null,null,null,null,null,null,null,"",{"$f":"IF('Commitment Form'!$Y$9:$Z$9<>\"DBE\", \"\", IF(F166=\"PS\", (0.6*N166), IF(F166=\"PD\", (0.4*N166), N166)))","v":""},""]
[160,null,null,null,null,null,null,null,null,null,null,null,null,"",{"$f":"IF('Commitment Form'!$Y$9:$Z$9<>\"DBE\", \"\", IF(F167=\"PS\", (0.6*N167), IF(F167=\"PD\", (0.4*N167), N167)))","v":""},""]
[161,null,null,null,null,null,null,null,null,null,null,null,null,"",{"$f":"IF('Commitment Form'!$Y$9:$Z$9<>\"DBE\", \"\", IF(F168=\"PS\", (0.6*N168), IF(F168=\"PD\", (0.4*N168), N168)))","v":""},""]
[162,null,null,null,null,null,null,null,null,null,null,null,null,"",{"$f":"IF('Commitment Form'!$Y$9:$Z$9<>\"DBE\", \"\", IF(F169=\"PS\", (0.6*N169), IF(F169=\"PD\", (0.4*N169), N169)))","v":""},""]
[163,null,null,null,null,null,null,null,null,null,null,null,null,"",{"$f":"IF('Commitment Form'!$Y$9:$Z$9<>\"DBE\", \"\", IF(F170=\"PS\", (0.6*N170), IF(F170=\"PD\", (0.4*N170), N170)))","v":""},""]
[164,null,null,null,null,null,null,null,null,null,null,null,null,"",{"$f":"IF('Commitment Form'!$Y$9:$Z$9<>\"DBE\", \"\", IF(F171=\"PS\", (0.6*N171), IF(F171=\"PD\", (0.4*N171), N171)))","v":""},""]
[165,null,null,null,null,null,null,null,null,null,null,null,null,"",{"$f":"IF('Commitment Form'!$Y$9:$Z$9<>\"DBE\", \"\", IF(F172=\"PS\", (0.6*N172), IF(F172=\"PD\", (0.4*N172), N172)))","v":""},""]
[166,null,null,null,null,null,null,null,null,null,null,null,null,"",{"$f":"IF('Commitment Form'!$Y$9:$Z$9<>\"DBE\", \"\", IF(F173=\"PS\", (0.6*N173), IF(F173=\"PD\", (0.4*N173), N173)))","v":""},""]
[167,null,null,null,null,null,null,null,null,null,null,null,null,"",{"$f":"IF('Commitment Form'!$Y$9:$Z$9<>\"DBE\", \"\", IF(F174=\"PS\", (0.6*N174), IF(F174=\"PD\", (0.4*N174), N174)))","v":""},""]
[168,null,null,null,null,null,null,null,null,null,null,null,null,"",{"$f":"IF('Commitment Form'!$Y$9:$Z$9<>\"DBE\", \"\", IF(F175=\"PS\", (0.6*N175), IF(F175=\"PD\", (0.4*N175), N175)))","v":""},""]
[169,null,null,null,null,null,null,null,null,null,null,null,null,"",{"$f":"IF('Commitment Form'!$Y$9:$Z$9<>\"DBE\", \"\", IF(F176=\"PS\", (0.6*N176), IF(F176=\"PD\", (0.4*N176), N176)))","v":""},""]
[170,null,null,null,null,null,null,null,null,null,null,null,null,"",{"$f":"IF('Commitment Form'!$Y$9:$Z$9<>\"DBE\", \"\", IF(F177=\"PS\", (0.6*N177), IF(F177=\"PD\", (0.4*N177), N177)))","v":""},""]
[171,null,null,null,null,null,null,null,null,null,null,null,null,"",{"$f":"IF('Commitment Form'!$Y$9:$Z$9<>\"DBE\", \"\", IF(F178=\"PS\", (0.6*N178), IF(F178=\"PD\", (0.4*N178), N178)))","v":""},""]
[172,null,null,null,null,null,null,null,null,null,null,null,null,"",{"$f":"IF('Commitment Form'!$Y$9:$Z$9<>\"DBE\", \"\", IF(F179=\"PS\", (0.6*N179), IF(F179=\"PD\", (0.4*N179), N179)))","v":""},""]
[173,null,null,null,null,null,null,null,null,null,null,null,null,"",{"$f":"IF('Commitment Form'!$Y$9:$Z$9<>\"DBE\", \"\", IF(F180=\"PS\", (0.6*N180), IF(F180=\"PD\", (0.4*N180), N180)))","v":""},""]
[174,null,null,null,null,null,null,null,null,null,null,null,null,"",{"$f":"IF('Commitment Form'!$Y$9:$Z$9<>\"DBE\", \"\", IF(F181=\"PS\", (0.6*N181), IF(F181=\"PD\", (0.4*N181), N181)))","v":""},""]
[175,null,null,null,null,null,null,null,null,null,null,null,null,"",{"$f":"IF('Commitment Form'!$Y$9:$Z$9<>\"DBE\", \"\", IF(F182=\"PS\", (0.6*N182), IF(F182=\"PD\", (0.4*N182), N182)))","v":""},""]
[176,null,null,null,null,null,null,null,null,null,null,null,null,"",{"$f":"IF('Commitment Form'!$Y$9:$Z$9<>\"DBE\", \"\", IF(F183=\"PS\", (0.6*N183), IF(F183=\"PD\", (0.4*N183), N183)))","v":""},""]
[177,null,null,null,null,null,null,null,null,null,null,null,null,"",{"$f":"IF('Commitment Form'!$Y$9:$Z$9<>\"DBE\", \"\", IF(F184=\"PS\", (0.6*N184), IF(F184=\"PD\", (0.4*N184), N184)))","v":""},""]
[178,null,null,null,null,null,null,null,null,null,null,null,null,"",{"$f":"IF('Commitment Form'!$Y$9:$Z$9<>\"DBE\", \"\", IF(F185=\"PS\", (0.6*N185), IF(F185=\"PD\", (0.4*N185), N185)))","v":""},""]
[179,null,null,null,null,null,null,null,null,null,null,null,null,"",{"$f":"IF('Commitment Form'!$Y$9:$Z$9<>\"DBE\", \"\", IF(F186=\"PS\", (0.6*N186), IF(F186=\"PD\", (0.4*N186), N186)))","v":""},""]
[180,null,null,null,null,null,null,null,null,null,null,null,null,"",{"$f":"IF('Commitment Form'!$Y$9:$Z$9<>\"DBE\", \"\", IF(F187=\"PS\", (0.6*N187), IF(F187=\"PD\", (0.4*N187), N187)))","v":""},""]
[181,null,null,null,null,null,null,null,null,null,null,null,null,"",{"$f":"IF('Commitment Form'!$Y$9:$Z$9<>\"DBE\", \"\", IF(F188=\"PS\", (0.6*N188), IF(F188=\"PD\", (0.4*N188), N188)))","v":""},""]
[182,null,null,null,null,null,null,null,null,null,null,null,null,"",{"$f":"IF('Commitment Form'!$Y$9:$Z$9<>\"DBE\", \"\", IF(F189=\"PS\", (0.6*N189), IF(F189=\"PD\", (0.4*N189), N189)))","v":""},""]
[183,null,null,null,null,null,null,null,null,null,null,null,null,"",{"$f":"IF('Commitment Form'!$Y$9:$Z$9<>\"DBE\", \"\", IF(F190=\"PS\", (0.6*N190), IF(F190=\"PD\", (0.4*N190), N190)))","v":""},""]
[184,null,null,null,null,null,null,null,null,null,null,null,null,"",{"$f":"IF('Commitment Form'!$Y$9:$Z$9<>\"DBE\", \"\", IF(F191=\"PS\", (0.6*N191), IF(F191=\"PD\", (0.4*N191), N191)))","v":""},""]
[185,null,null,null,null,null,null,null,null,null,null,null,null,"",{"$f":"IF('Commitment Form'!$Y$9:$Z$9<>\"DBE\", \"\", IF(F192=\"PS\", (0.6*N192), IF(F192=\"PD\", (0.4*N192), N192)))","v":""},""]
[186,null,null,null,null,null,null,null,null,null,null,null,null,"",{"$f":"IF('Commitment Form'!$Y$9:$Z$9<>\"DBE\", \"\", IF(F193=\"PS\", (0.6*N193), IF(F193=\"PD\", (0.4*N193), N193)))","v":""},""]
[187,null,null,null,null,null,null,null,null,null,null,null,null,"",{"$f":"IF('Commitment Form'!$Y$9:$Z$9<>\"DBE\", \"\", IF(F194=\"PS\", (0.6*N194), IF(F194=\"PD\", (0.4*N194), N194)))","v":""},""]
[188,null,null,null,null,null,null,null,null,null,null,null,null,"",{"$f":"IF('Commitment Form'!$Y$9:$Z$9<>\"DBE\", \"\", IF(F195=\"PS\", (0.6*N195), IF(F195=\"PD\", (0.4*N195), N195)))","v":""},""]
[189,null,null,null,null,null,null,null,null,null,null,null,null,"",{"$f":"IF('Commitment Form'!$Y$9:$Z$9<>\"DBE\", \"\", IF(F196=\"PS\", (0.6*N196), IF(F196=\"PD\", (0.4*N196), N196)))","v":""},""]
[190,null,null,null,null,null,null,null,null,null,null,null,null,"",{"$f":"IF('Commitment Form'!$Y$9:$Z$9<>\"DBE\", \"\", IF(F197=\"PS\", (0.6*N197), IF(F197=\"PD\", (0.4*N197), N197)))","v":""},""]
[191,null,null,null,null,null,null,null,null,null,null,null,null,"",{"$f":"IF('Commitment Form'!$Y$9:$Z$9<>\"DBE\", \"\", IF(F198=\"PS\", (0.6*N198), IF(F198=\"PD\", (0.4*N198), N198)))","v":""},""]
[192,null,null,null,null,null,null,null,null,null,null,null,null,"",{"$f":"IF('Commitment Form'!$Y$9:$Z$9<>\"DBE\", \"\", IF(F199=\"PS\", (0.6*N199), IF(F199=\"PD\", (0.4*N199), N199)))","v":""},""]
[193,null,null,null,null,null,null,null,null,null,null,null,null,{"$f":"IF(OR(L200=\"\",M200=\"\"),\"\",L200*M200)","v":""},{"$f":"IF('Commitment Form'!$Y$9:$Z$9<>\"DBE\", \"\", IF(F200=\"PS\", (0.6*N200), IF(F200=\"PD\", (0.4*N200), N200)))","v":""},""]
[194,null,null,null,null,null,null,null,null,null,null,null,null,"",{"$f":"IF('Commitment Form'!$Y$9:$Z$9<>\"DBE\", \"\", IF(F201=\"PS\", (0.6*N201), IF(F201=\"PD\", (0.4*N201), N201)))","v":""},""]
[195,null,null,null,null,null,null,null,null,null,null,null,null,"",{"$f":"IF('Commitment Form'!$Y$9:$Z$9<>\"DBE\", \"\", IF(F202=\"PS\", (0.6*N202), IF(F202=\"PD\", (0.4*N202), N202)))","v":""},""]
[196,null,null,null,null,null,null,null,null,null,null,null,null,"",{"$f":"IF('Commitment Form'!$Y$9:$Z$9<>\"DBE\", \"\", IF(F203=\"PS\", (0.6*N203), IF(F203=\"PD\", (0.4*N203), N203)))","v":""},""]
[197,null,null,null,null,null,null,null,null,null,null,null,null,"",{"$f":"IF('Commitment Form'!$Y$9:$Z$9<>\"DBE\", \"\", IF(F204=\"PS\", (0.6*N204), IF(F204=\"PD\", (0.4*N204), N204)))","v":""},""]
[198,null,null,null,null,null,null,null,null,null,null,null,null,"",{"$f":"IF('Commitment Form'!$Y$9:$Z$9<>\"DBE\", \"\", IF(F205=\"PS\", (0.6*N205), IF(F205=\"PD\", (0.4*N205), N205)))","v":""},""]
[199,null,null,null,null,null,null,null,null,null,null,null,null,"",{"$f":"IF('Commitment Form'!$Y$9:$Z$9<>\"DBE\", \"\", IF(F206=\"PS\", (0.6*N206), IF(F206=\"PD\", (0.4*N206), N206)))","v":""},""]
[200,null,null,null,null,null,null,null,null,null,null,null,null,"",{"$f":"IF('Commitment Form'!$Y$9:$Z$9<>\"DBE\", \"\", IF(F207=\"PS\", (0.6*N207), IF(F207=\"PD\", (0.4*N207), N207)))","v":""},""]
[201,null,null,null,null,null,null,null,null,null,null,null,null,"",{"$f":"IF('Commitment Form'!$Y$9:$Z$9<>\"DBE\", \"\", IF(F208=\"PS\", (0.6*N208), IF(F208=\"PD\", (0.4*N208), N208)))","v":""},""]
[202,null,null,null,null,null,null,null,null,null,null,null,null,"",{"$f":"IF('Commitment Form'!$Y$9:$Z$9<>\"DBE\", \"\", IF(F209=\"PS\", (0.6*N209), IF(F209=\"PD\", (0.4*N209), N209)))","v":""},""]
[203,null,null,null,null,null,null,null,null,null,null,null,null,"",{"$f":"IF('Commitment Form'!$Y$9:$Z$9<>\"DBE\", \"\", IF(F210=\"PS\", (0.6*N210), IF(F210=\"PD\", (0.4*N210), N210)))","v":""},""]
[204,null,null,null,null,null,null,null,null,null,null,null,null,"",{"$f":"IF('Commitment Form'!$Y$9:$Z$9<>\"DBE\", \"\", IF(F211=\"PS\", (0.6*N211), IF(F211=\"PD\", (0.4*N211), N211)))","v":""},""]
[205,null,null,null,null,null,null,null,null,null,null,null,null,"",{"$f":"IF('Commitment Form'!$Y$9:$Z$9<>\"DBE\", \"\", IF(F212=\"PS\", (0.6*N212), IF(F212=\"PD\", (0.4*N212), N212)))","v":""},""]
[206,null,null,null,null,null,null,null,null,null,null,null,null,"",{"$f":"IF('Commitment Form'!$Y$9:$Z$9<>\"DBE\", \"\", IF(F213=\"PS\", (0.6*N213), IF(F213=\"PD\", (0.4*N213), N213)))","v":""},""]
[207,null,null,null,null,null,null,null,null,null,null,null,null,"",{"$f":"IF('Commitment Form'!$Y$9:$Z$9<>\"DBE\", \"\", IF(F214=\"PS\", (0.6*N214), IF(F214=\"PD\", (0.4*N214), N214)))","v":""},""]
[208,null,null,null,null,null,null,null,null,null,null,null,null,"",{"$f":"IF('Commitment Form'!$Y$9:$Z$9<>\"DBE\", \"\", IF(F215=\"PS\", (0.6*N215), IF(F215=\"PD\", (0.4*N215), N215)))","v":""},""]
[209,null,null,null,null,null,null,null,null,null,null,null,null,"",{"$f":"IF('Commitment Form'!$Y$9:$Z$9<>\"DBE\", \"\", IF(F216=\"PS\", (0.6*N216), IF(F216=\"PD\", (0.4*N216), N216)))","v":""},""]
[210,null,null,null,null,null,null,null,null,null,null,null,null,"",{"$f":"IF('Commitment Form'!$Y$9:$Z$9<>\"DBE\", \"\", IF(F217=\"PS\", (0.6*N217), IF(F217=\"PD\", (0.4*N217), N217)))","v":""},""]
[211,null,null,null,null,null,null,null,null,null,null,null,null,"",{"$f":"IF('Commitment Form'!$Y$9:$Z$9<>\"DBE\", \"\", IF(F218=\"PS\", (0.6*N218), IF(F218=\"PD\", (0.4*N218), N218)))","v":""},""]
[212,null,null,null,null,null,null,null,null,null,null,null,null,"",{"$f":"IF('Commitment Form'!$Y$9:$Z$9<>\"DBE\", \"\", IF(F219=\"PS\", (0.6*N219), IF(F219=\"PD\", (0.4*N219), N219)))","v":""},""]
[213,null,null,null,null,null,null,null,null,null,null,null,null,"",{"$f":"IF('Commitment Form'!$Y$9:$Z$9<>\"DBE\", \"\", IF(F220=\"PS\", (0.6*N220), IF(F220=\"PD\", (0.4*N220), N220)))","v":""},""]
[214,null,null,null,null,null,null,null,null,null,null,null,null,"",{"$f":"IF('Commitment Form'!$Y$9:$Z$9<>\"DBE\", \"\", IF(F221=\"PS\", (0.6*N221), IF(F221=\"PD\", (0.4*N221), N221)))","v":""},""]
[215,null,null,null,null,null,null,null,null,null,null,null,null,"",{"$f":"IF('Commitment Form'!$Y$9:$Z$9<>\"DBE\", \"\", IF(F222=\"PS\", (0.6*N222), IF(F222=\"PD\", (0.4*N222), N222)))","v":""},""]
[216,null,null,null,null,null,null,null,null,null,null,null,null,"",{"$f":"IF('Commitment Form'!$Y$9:$Z$9<>\"DBE\", \"\", IF(F223=\"PS\", (0.6*N223), IF(F223=\"PD\", (0.4*N223), N223)))","v":""},""]
[217,null,null,null,null,null,null,null,null,null,null,null,null,"",{"$f":"IF('Commitment Form'!$Y$9:$Z$9<>\"DBE\", \"\", IF(F224=\"PS\", (0.6*N224), IF(F224=\"PD\", (0.4*N224), N224)))","v":""},""]
[218,null,null,null,null,null,null,null,null,null,null,null,null,"",{"$f":"IF('Commitment Form'!$Y$9:$Z$9<>\"DBE\", \"\", IF(F225=\"PS\", (0.6*N225), IF(F225=\"PD\", (0.4*N225), N225)))","v":""},""]
[219,null,null,null,null,null,null,null,null,null,null,null,null,"",{"$f":"IF('Commitment Form'!$Y$9:$Z$9<>\"DBE\", \"\", IF(F226=\"PS\", (0.6*N226), IF(F226=\"PD\", (0.4*N226), N226)))","v":""},""]
[220,null,null,null,null,null,null,null,null,null,null,null,null,"",{"$f":"IF('Commitment Form'!$Y$9:$Z$9<>\"DBE\", \"\", IF(F227=\"PS\", (0.6*N227), IF(F227=\"PD\", (0.4*N227), N227)))","v":""},""]
[221,null,null,null,null,null,null,null,null,null,null,null,null,"",{"$f":"IF('Commitment Form'!$Y$9:$Z$9<>\"DBE\", \"\", IF(F228=\"PS\", (0.6*N228), IF(F228=\"PD\", (0.4*N228), N228)))","v":""},""]
[222,null,null,null,null,null,null,null,null,null,null,null,null,"",{"$f":"IF('Commitment Form'!$Y$9:$Z$9<>\"DBE\", \"\", IF(F229=\"PS\", (0.6*N229), IF(F229=\"PD\", (0.4*N229), N229)))","v":""},""]
[223,null,null,null,null,null,null,null,null,null,null,null,null,"",{"$f":"IF('Commitment Form'!$Y$9:$Z$9<>\"DBE\", \"\", IF(F230=\"PS\", (0.6*N230), IF(F230=\"PD\", (0.4*N230), N230)))","v":""},""]
[224,null,null,null,null,null,null,null,null,null,null,null,null,"",{"$f":"IF('Commitment Form'!$Y$9:$Z$9<>\"DBE\", \"\", IF(F231=\"PS\", (0.6*N231), IF(F231=\"PD\", (0.4*N231), N231)))","v":""},""]
[225,null,null,null,null,null,null,null,null,null,null,null,null,"",{"$f":"IF('Commitment Form'!$Y$9:$Z$9<>\"DBE\", \"\", IF(F232=\"PS\", (0.6*N232), IF(F232=\"PD\", (0.4*N232), N232)))","v":""},""]
[226,null,null,null,null,null,null,null,null,null,null,null,null,"",{"$f":"IF('Commitment Form'!$Y$9:$Z$9<>\"DBE\", \"\", IF(F233=\"PS\", (0.6*N233), IF(F233=\"PD\", (0.4*N233), N233)))","v":""},""]
[227,null,null,null,null,null,null,null,null,null,null,null,null,"",{"$f":"IF('Commitment Form'!$Y$9:$Z$9<>\"DBE\", \"\", IF(F234=\"PS\", (0.6*N234), IF(F234=\"PD\", (0.4*N234), N234)))","v":""},""]
[228,null,null,null,null,null,null,null,null,null,null,null,null,"",{"$f":"IF('Commitment Form'!$Y$9:$Z$9<>\"DBE\", \"\", IF(F235=\"PS\", (0.6*N235), IF(F235=\"PD\", (0.4*N235), N235)))","v":""},""]
[229,null,null,null,null,null,null,null,null,null,null,null,null,"",{"$f":"IF('Commitment Form'!$Y$9:$Z$9<>\"DBE\", \"\", IF(F236=\"PS\", (0.6*N236), IF(F236=\"PD\", (0.4*N236), N236)))","v":""},""]
[230,null,null,null,null,null,null,null,null,null,null,null,null,"",{"$f":"IF('Commitment Form'!$Y$9:$Z$9<>\"DBE\", \"\", IF(F237=\"PS\", (0.6*N237), IF(F237=\"PD\", (0.4*N237), N237)))","v":""},""]
[231,null,null,null,null,null,null,null,null,null,null,null,null,"",{"$f":"IF('Commitment Form'!$Y$9:$Z$9<>\"DBE\", \"\", IF(F238=\"PS\", (0.6*N238), IF(F238=\"PD\", (0.4*N238), N238)))","v":""},""]
[232,null,null,null,null,null,null,null,null,null,null,null,null,"",{"$f":"IF('Commitment Form'!$Y$9:$Z$9<>\"DBE\", \"\", IF(F239=\"PS\", (0.6*N239), IF(F239=\"PD\", (0.4*N239), N239)))","v":""},""]
[233,null,null,null,null,null,null,null,null,null,null,null,null,"",{"$f":"IF('Commitment Form'!$Y$9:$Z$9<>\"DBE\", \"\", IF(F240=\"PS\", (0.6*N240), IF(F240=\"PD\", (0.4*N240), N240)))","v":""},""]
[234,null,null,null,null,null,null,null,null,null,null,null,null,"",{"$f":"IF('Commitment Form'!$Y$9:$Z$9<>\"DBE\", \"\", IF(F241=\"PS\", (0.6*N241), IF(F241=\"PD\", (0.4*N241), N241)))","v":""},""]
[235,null,null,null,null,null,null,null,null,null,null,null,null,"",{"$f":"IF('Commitment Form'!$Y$9:$Z$9<>\"DBE\", \"\", IF(F242=\"PS\", (0.6*N242), IF(F242=\"PD\", (0.4*N242), N242)))","v":""},""]
[236,null,null,null,null,null,null,null,null,null,null,null,null,"",{"$f":"IF('Commitment Form'!$Y$9:$Z$9<>\"DBE\", \"\", IF(F243=\"PS\", (0.6*N243), IF(F243=\"PD\", (0.4*N243), N243)))","v":""},""]
[237,null,null,null,null,null,null,null,null,null,null,null,null,"",{"$f":"IF('Commitment Form'!$Y$9:$Z$9<>\"DBE\", \"\", IF(F244=\"PS\", (0.6*N244), IF(F244=\"PD\", (0.4*N244), N244)))","v":""},""]
[238,null,null,null,null,null,null,null,null,null,null,null,null,"",{"$f":"IF('Commitment Form'!$Y$9:$Z$9<>\"DBE\", \"\", IF(F245=\"PS\", (0.6*N245), IF(F245=\"PD\", (0.4*N245), N245)))","v":""},""]
[239,null,null,null,null,null,null,null,null,null,null,null,null,"",{"$f":"IF('Commitment Form'!$Y$9:$Z$9<>\"DBE\", \"\", IF(F246=\"PS\", (0.6*N246), IF(F246=\"PD\", (0.4*N246), N246)))","v":""},""]
[240,null,null,null,null,null,null,null,null,null,null,null,null,"",{"$f":"IF('Commitment Form'!$Y$9:$Z$9<>\"DBE\", \"\", IF(F247=\"PS\", (0.6*N247), IF(F247=\"PD\", (0.4*N247), N247)))","v":""},""]
[241,null,null,null,null,null,null,null,null,null,null,null,null,"",{"$f":"IF('Commitment Form'!$Y$9:$Z$9<>\"DBE\", \"\", IF(F248=\"PS\", (0.6*N248), IF(F248=\"PD\", (0.4*N248), N248)))","v":""},""]
[242,null,null,null,null,null,null,null,null,null,null,null,null,"",{"$f":"IF('Commitment Form'!$Y$9:$Z$9<>\"DBE\", \"\", IF(F249=\"PS\", (0.6*N249), IF(F249=\"PD\", (0.4*N249), N249)))","v":""},""]
[243,null,null,null,null,null,null,null,null,null,null,null,null,"",{"$f":"IF('Commitment Form'!$Y$9:$Z$9<>\"DBE\", \"\", IF(F250=\"PS\", (0.6*N250), IF(F250=\"PD\", (0.4*N250), N250)))","v":""},""]
[244,null,null,null,null,null,null,null,null,null,null,null,null,"",{"$f":"IF('Commitment Form'!$Y$9:$Z$9<>\"DBE\", \"\", IF(F251=\"PS\", (0.6*N251), IF(F251=\"PD\", (0.4*N251), N251)))","v":""},""]
[245,null,null,null,null,null,null,null,null,null,null,null,null,"",{"$f":"IF('Commitment Form'!$Y$9:$Z$9<>\"DBE\", \"\", IF(F252=\"PS\", (0.6*N252), IF(F252=\"PD\", (0.4*N252), N252)))","v":""},""]
[246,null,null,null,null,null,null,null,null,null,null,null,null,"",{"$f":"IF('Commitment Form'!$Y$9:$Z$9<>\"DBE\", \"\", IF(F253=\"PS\", (0.6*N253), IF(F253=\"PD\", (0.4*N253), N253)))","v":""},""]
[247,null,null,null,null,null,null,null,null,null,null,null,null,"",{"$f":"IF('Commitment Form'!$Y$9:$Z$9<>\"DBE\", \"\", IF(F254=\"PS\", (0.6*N254), IF(F254=\"PD\", (0.4*N254), N254)))","v":""},""]
[248,null,null,null,null,null,null,null,null,null,null,null,null,"",{"$f":"IF('Commitment Form'!$Y$9:$Z$9<>\"DBE\", \"\", IF(F255=\"PS\", (0.6*N255), IF(F255=\"PD\", (0.4*N255), N255)))","v":""},""]
[249,null,null,null,null,null,null,null,null,null,null,null,null,"",{"$f":"IF('Commitment Form'!$Y$9:$Z$9<>\"DBE\", \"\", IF(F256=\"PS\", (0.6*N256), IF(F256=\"PD\", (0.4*N256), N256)))","v":""},""]
[250,null,null,null,null,null,null,null,null,null,null,null,null,"",{"$f":"IF('Commitment Form'!$Y$9:$Z$9<>\"DBE\", \"\", IF(F257=\"PS\", (0.6*N257), IF(F257=\"PD\", (0.4*N257), N257)))","v":""},""]
[251,null,null,null,null,null,null,null,null,null,null,null,null,"",{"$f":"IF('Commitment Form'!$Y$9:$Z$9<>\"DBE\", \"\", IF(F258=\"PS\", (0.6*N258), IF(F258=\"PD\", (0.4*N258), N258)))","v":""},""]
[252,null,null,null,null,null,null,null,null,null,null,null,null,"",{"$f":"IF('Commitment Form'!$Y$9:$Z$9<>\"DBE\", \"\", IF(F259=\"PS\", (0.6*N259), IF(F259=\"PD\", (0.4*N259), N259)))","v":""},""]
[253,null,null,null,null,null,null,null,null,null,null,null,null,"",{"$f":"IF('Commitment Form'!$Y$9:$Z$9<>\"DBE\", \"\", IF(F260=\"PS\", (0.6*N260), IF(F260=\"PD\", (0.4*N260), N260)))","v":""},""]
[254,null,null,null,null,null,null,null,null,null,null,null,null,"",{"$f":"IF('Commitment Form'!$Y$9:$Z$9<>\"DBE\", \"\", IF(F261=\"PS\", (0.6*N261), IF(F261=\"PD\", (0.4*N261), N261)))","v":""},""]
[255,null,null,null,null,null,null,null,null,null,null,null,null,"",{"$f":"IF('Commitment Form'!$Y$9:$Z$9<>\"DBE\", \"\", IF(F262=\"PS\", (0.6*N262), IF(F262=\"PD\", (0.4*N262), N262)))","v":""},""]
[256,null,null,null,null,null,null,null,null,null,null,null,null,"",{"$f":"IF('Commitment Form'!$Y$9:$Z$9<>\"DBE\", \"\", IF(F263=\"PS\", (0.6*N263), IF(F263=\"PD\", (0.4*N263), N263)))","v":""},""]
[257,null,null,null,null,null,null,null,null,null,null,null,null,{"$f":"IF(OR(L264=\"\",M264=\"\"),\"\",L264*M264)","v":""},{"$f":"IF('Commitment Form'!$Y$9:$Z$9<>\"DBE\", \"\", IF(F264=\"PS\", (0.6*N264), IF(F264=\"PD\", (0.4*N264), N264)))","v":""},""]
[258,null,null,null,null,null,null,null,null,null,null,null,null,"",{"$f":"IF('Commitment Form'!$Y$9:$Z$9<>\"DBE\", \"\", IF(F265=\"PS\", (0.6*N265), IF(F265=\"PD\", (0.4*N265), N265)))","v":""},""]
[259,null,null,null,null,null,null,null,null,null,null,null,null,"",{"$f":"IF('Commitment Form'!$Y$9:$Z$9<>\"DBE\", \"\", IF(F266=\"PS\", (0.6*N266), IF(F266=\"PD\", (0.4*N266), N266)))","v":""},""]
[260,null,null,null,null,null,null,null,null,null,null,null,null,"",{"$f":"IF('Commitment Form'!$Y$9:$Z$9<>\"DBE\", \"\", IF(F267=\"PS\", (0.6*N267), IF(F267=\"PD\", (0.4*N267), N267)))","v":""},""]
[261,null,null,null,null,null,null,null,null,null,null,null,null,"",{"$f":"IF('Commitment Form'!$Y$9:$Z$9<>\"DBE\", \"\", IF(F268=\"PS\", (0.6*N268), IF(F268=\"PD\", (0.4*N268), N268)))","v":""},""]
[262,null,null,null,null,null,null,null,null,null,null,null,null,"",{"$f":"IF('Commitment Form'!$Y$9:$Z$9<>\"DBE\", \"\", IF(F269=\"PS\", (0.6*N269), IF(F269=\"PD\", (0.4*N269), N269)))","v":""},""]
[263,null,null,null,null,null,null,null,null,null,null,null,null,"",{"$f":"IF('Commitment Form'!$Y$9:$Z$9<>\"DBE\", \"\", IF(F270=\"PS\", (0.6*N270), IF(F270=\"PD\", (0.4*N270), N270)))","v":""},""]
[264,null,null,null,null,null,null,null,null,null,null,null,null,"",{"$f":"IF('Commitment Form'!$Y$9:$Z$9<>\"DBE\", \"\", IF(F271=\"PS\", (0.6*N271), IF(F271=\"PD\", (0.4*N271), N271)))","v":""},""]
[265,null,null,null,null,null,null,null,null,null,null,null,null,"",{"$f":"IF('Commitment Form'!$Y$9:$Z$9<>\"DBE\", \"\", IF(F272=\"PS\", (0.6*N272), IF(F272=\"PD\", (0.4*N272), N272)))","v":""},""]
[266,null,null,null,null,null,null,null,null,null,null,null,null,"",{"$f":"IF('Commitment Form'!$Y$9:$Z$9<>\"DBE\", \"\", IF(F273=\"PS\", (0.6*N273), IF(F273=\"PD\", (0.4*N273), N273)))","v":""},""]
[267,null,null,null,null,null,null,null,null,null,null,null,null,"",{"$f":"IF('Commitment Form'!$Y$9:$Z$9<>\"DBE\", \"\", IF(F274=\"PS\", (0.6*N274), IF(F274=\"PD\", (0.4*N274), N274)))","v":""},""]
[268,null,null,null,null,null,null,null,null,null,null,null,null,"",{"$f":"IF('Commitment Form'!$Y$9:$Z$9<>\"DBE\", \"\", IF(F275=\"PS\", (0.6*N275), IF(F275=\"PD\", (0.4*N275), N275)))","v":""},""]
[269,null,null,null,null,null,null,null,null,null,null,null,null,"",{"$f":"IF('Commitment Form'!$Y$9:$Z$9<>\"DBE\", \"\", IF(F276=\"PS\", (0.6*N276), IF(F276=\"PD\", (0.4*N276), N276)))","v":""},""]
[270,null,null,null,null,null,null,null,null,null,null,null,null,"",{"$f":"IF('Commitment Form'!$Y$9:$Z$9<>\"DBE\", \"\", IF(F277=\"PS\", (0.6*N277), IF(F277=\"PD\", (0.4*N277), N277)))","v":""},""]
[271,null,null,null,null,null,null,null,null,null,null,null,null,"",{"$f":"IF('Commitment Form'!$Y$9:$Z$9<>\"DBE\", \"\", IF(F278=\"PS\", (0.6*N278), IF(F278=\"PD\", (0.4*N278), N278)))","v":""},""]
[272,null,null,null,null,null,null,null,null,null,null,null,null,"",{"$f":"IF('Commitment Form'!$Y$9:$Z$9<>\"DBE\", \"\", IF(F279=\"PS\", (0.6*N279), IF(F279=\"PD\", (0.4*N279), N279)))","v":""},""]
[273,null,null,null,null,null,null,null,null,null,null,null,null,"",{"$f":"IF('Commitment Form'!$Y$9:$Z$9<>\"DBE\", \"\", IF(F280=\"PS\", (0.6*N280), IF(F280=\"PD\", (0.4*N280), N280)))","v":""},""]
[274,null,null,null,null,null,null,null,null,null,null,null,null,"",{"$f":"IF('Commitment Form'!$Y$9:$Z$9<>\"DBE\", \"\", IF(F281=\"PS\", (0.6*N281), IF(F281=\"PD\", (0.4*N281), N281)))","v":""},""]
[275,null,null,null,null,null,null,null,null,null,null,null,null,"",{"$f":"IF('Commitment Form'!$Y$9:$Z$9<>\"DBE\", \"\", IF(F282=\"PS\", (0.6*N282), IF(F282=\"PD\", (0.4*N282), N282)))","v":""},""]
[276,null,null,null,null,null,null,null,null,null,null,null,null,"",{"$f":"IF('Commitment Form'!$Y$9:$Z$9<>\"DBE\", \"\", IF(F283=\"PS\", (0.6*N283), IF(F283=\"PD\", (0.4*N283), N283)))","v":""},""]
[277,null,null,null,null,null,null,null,null,null,null,null,null,"",{"$f":"IF('Commitment Form'!$Y$9:$Z$9<>\"DBE\", \"\", IF(F284=\"PS\", (0.6*N284), IF(F284=\"PD\", (0.4*N284), N284)))","v":""},""]
[278,null,null,null,null,null,null,null,null,null,null,null,null,"",{"$f":"IF('Commitment Form'!$Y$9:$Z$9<>\"DBE\", \"\", IF(F285=\"PS\", (0.6*N285), IF(F285=\"PD\", (0.4*N285), N285)))","v":""},""]
[279,null,null,null,null,null,null,null,null,null,null,null,null,"",{"$f":"IF('Commitment Form'!$Y$9:$Z$9<>\"DBE\", \"\", IF(F286=\"PS\", (0.6*N286), IF(F286=\"PD\", (0.4*N286), N286)))","v":""},""]
[280,null,null,null,null,null,null,null,null,null,null,null,null,"",{"$f":"IF('Commitment Form'!$Y$9:$Z$9<>\"DBE\", \"\", IF(F287=\"PS\", (0.6*N287), IF(F287=\"PD\", (0.4*N287), N287)))","v":""},""]
[281,null,null,null,null,null,null,null,null,null,null,null,null,"",{"$f":"IF('Commitment Form'!$Y$9:$Z$9<>\"DBE\", \"\", IF(F288=\"PS\", (0.6*N288), IF(F288=\"PD\", (0.4*N288), N288)))","v":""},""]
[282,null,null,null,null,null,null,null,null,null,null,null,null,"",{"$f":"IF('Commitment Form'!$Y$9:$Z$9<>\"DBE\", \"\", IF(F289=\"PS\", (0.6*N289), IF(F289=\"PD\", (0.4*N289), N289)))","v":""},""]
[283,null,null,null,null,null,null,null,null,null,null,null,null,"",{"$f":"IF('Commitment Form'!$Y$9:$Z$9<>\"DBE\", \"\", IF(F290=\"PS\", (0.6*N290), IF(F290=\"PD\", (0.4*N290), N290)))","v":""},""]
[284,null,null,null,null,null,null,null,null,null,null,null,null,"",{"$f":"IF('Commitment Form'!$Y$9:$Z$9<>\"DBE\", \"\", IF(F291=\"PS\", (0.6*N291), IF(F291=\"PD\", (0.4*N291), N291)))","v":""},""]
[285,null,null,null,null,null,null,null,null,null,null,null,null,"",{"$f":"IF('Commitment Form'!$Y$9:$Z$9<>\"DBE\", \"\", IF(F292=\"PS\", (0.6*N292), IF(F292=\"PD\", (0.4*N292), N292)))","v":""},""]
[286,null,null,null,null,null,null,null,null,null,null,null,null,"",{"$f":"IF('Commitment Form'!$Y$9:$Z$9<>\"DBE\", \"\", IF(F293=\"PS\", (0.6*N293), IF(F293=\"PD\", (0.4*N293), N293)))","v":""},""]
[287,null,null,null,null,null,null,null,null,null,null,null,null,"",{"$f":"IF('Commitment Form'!$Y$9:$Z$9<>\"DBE\", \"\", IF(F294=\"PS\", (0.6*N294), IF(F294=\"PD\", (0.4*N294), N294)))","v":""},""]
[288,null,null,null,null,null,null,null,null,null,null,null,null,"",{"$f":"IF('Commitment Form'!$Y$9:$Z$9<>\"DBE\", \"\", IF(F295=\"PS\", (0.6*N295), IF(F295=\"PD\", (0.4*N295), N295)))","v":""},""]
[289,null,null,null,null,null,null,null,null,null,null,null,null,"",{"$f":"IF('Commitment Form'!$Y$9:$Z$9<>\"DBE\", \"\", IF(F296=\"PS\", (0.6*N296), IF(F296=\"PD\", (0.4*N296), N296)))","v":""},""]
[290,null,null,null,null,null,null,null,null,null,null,null,null,"",{"$f":"IF('Commitment Form'!$Y$9:$Z$9<>\"DBE\", \"\", IF(F297=\"PS\", (0.6*N297), IF(F297=\"PD\", (0.4*N297), N297)))","v":""},""]
[291,null,null,null,null,null,null,null,null,null,null,null,null,"",{"$f":"IF('Commitment Form'!$Y$9:$Z$9<>\"DBE\", \"\", IF(F298=\"PS\", (0.6*N298), IF(F298=\"PD\", (0.4*N298), N298)))","v":""},""]
[292,null,null,null,null,null,null,null,null,null,null,null,null,"",{"$f":"IF('Commitment Form'!$Y$9:$Z$9<>\"DBE\", \"\", IF(F299=\"PS\", (0.6*N299), IF(F299=\"PD\", (0.4*N299), N299)))","v":""},""]
[293,null,null,null,null,null,null,null,null,null,null,null,null,"",{"$f":"IF('Commitment Form'!$Y$9:$Z$9<>\"DBE\", \"\", IF(F300=\"PS\", (0.6*N300), IF(F300=\"PD\", (0.4*N300), N300)))","v":""},""]
[294,null,null,null,null,null,null,null,null,null,null,null,null,"",{"$f":"IF('Commitment Form'!$Y$9:$Z$9<>\"DBE\", \"\", IF(F301=\"PS\", (0.6*N301), IF(F301=\"PD\", (0.4*N301), N301)))","v":""},""]
[295,null,null,null,null,null,null,null,null,null,null,null,null,"",{"$f":"IF('Commitment Form'!$Y$9:$Z$9<>\"DBE\", \"\", IF(F302=\"PS\", (0.6*N302), IF(F302=\"PD\", (0.4*N302), N302)))","v":""},""]
[296,null,null,null,null,null,null,null,null,null,null,null,null,"",{"$f":"IF('Commitment Form'!$Y$9:$Z$9<>\"DBE\", \"\", IF(F303=\"PS\", (0.6*N303), IF(F303=\"PD\", (0.4*N303), N303)))","v":""},""]
[297,null,null,null,null,null,null,null,null,null,null,null,null,"",{"$f":"IF('Commitment Form'!$Y$9:$Z$9<>\"DBE\", \"\", IF(F304=\"PS\", (0.6*N304), IF(F304=\"PD\", (0.4*N304), N304)))","v":""},""]
[298,null,null,null,null,null,null,null,null,null,null,null,null,"",{"$f":"IF('Commitment Form'!$Y$9:$Z$9<>\"DBE\", \"\", IF(F305=\"PS\", (0.6*N305), IF(F305=\"PD\", (0.4*N305), N305)))","v":""},""]
[299,null,null,null,null,null,null,null,null,null,null,null,null,"",{"$f":"IF('Commitment Form'!$Y$9:$Z$9<>\"DBE\", \"\", IF(F306=\"PS\", (0.6*N306), IF(F306=\"PD\", (0.4*N306), N306)))","v":""},""]
[300,null,null,null,null,null,null,null,null,null,null,null,null,"",{"$f":"IF('Commitment Form'!$Y$9:$Z$9<>\"DBE\", \"\", IF(F307=\"PS\", (0.6*N307), IF(F307=\"PD\", (0.4*N307), N307)))","v":""},""]

{"sheet":"Data","index":3,"n_rows":9,"n_cols":11,"rows_kept":9,"cut":false,"hidden":true,"merged":[]}
["Item Type",null,"Special Prov",null,"Partial Item",null,"First or Second Tier",null,"Firm Type Code",null,"DBE or SBE"]
[]
["Original",null,"YES",null,"YES",null,"1st Tier",null,"S",null,"DBE"]
["CO",null,"NO",null,"NO",null,"2nd Tier",null,"M",null,"SBE"]
[null,null,null,null,null,null,null,null,"PD"]
[null,null,null,null,null,null,null,null,"PS"]
[null,null,null,null,null,null,null,null,"T"]
[null,null,null,null,null,null,null,null,"V"]
[null,null,null,null,null,null,null,null,"L"]